Workbook

Sheet прил 1 (2013 доходы)
A3: Прогнозируемые доходы бюджета Черемховского районного муниципального образования на 2013 год
E5: (тыс. рублей)
A6: Наименование | B6: Код бюджетной классификации | D6: Прогноз на 2013 год (перв) | E6: Прогноз на 2013 год | F6: ОТК
B7: главного администратора доходов | C7: доходов районного бюджета
A8: НАЛОГОВЫЕ И НЕНАЛОГОВЫЕ ДОХОДЫ | B8: 000 | C8: 1 00 00000 00 0000 000 | D8: =D9+D14+D23+D27+D30+D35+D40+D47+D52+D71 -> 81236.93 | E8: =E9+E14+E23+E27+E30+E35+E40+E47+E52+E71 -> 81236.93 | F8: =E8-D8 -> 0
A9: НАЛОГИ НА ПРИБЫЛЬ, ДОХОДЫ | B9: 182 | C9: 1 01 00000 00 0000 000 | D9: =D10+D11+D12+D13 -> 50023.7 | E9: 50023.7 | F9: =E9-D9 -> 0
A10: Налог на доходы физических лиц с доходов, источником которых является налоговый агент, за исключением доходов, в отношении которых исчисление и уплата налога осуществляются в соответствии со статьями 227,227¹ и 228 Налогового кодекса Российской Федерации | B10: 182 | C10: 1 01 02010 01 0000 110 | D10: 49835.4 | E10: 49835.4 | F10: 0
A11: Налог на доходы физических лиц с доходов, полученных от осуществления деятельности физическими лицами,зарегистрированными в качестве индивидуальных предпринимателей,нотариусов,занимающихся частной практикой,адвокатов,учредивших адвокатские кабинеты и других лиц, занимающихся частной практикой | B11: 182 | C11: 1 01 02020 01 0000 110 | D11: 53.1 | E11: 53.1 | F11: 0
A12: Налог на доходы физических лиц с доходов, полученных физическими лицами, не являющимися налоговыми резидентами | B12: 182 | C12: 1 01 02030 01 0000 110 | D12: 131.7 | E12: 131.7 | F12: 0
A13: Налог на доходы физических лиц в виде фиксированных авансовых платежей с доходов, полученных физическими лицами, являющимися иностранными гражданами, осуществляющими трудовую деятельность по найму у физических лиц на основании патента | B13: 182 | C13: 1 01 02040 01 0000 110 | D13: 3.5 | E13: 3.5 | F13: 0
A14: НАЛОГИ НА СОВОКУПНЫЙ ДОХОД | B14: 182 | C14: 1 05 00000 00 0000 000 | D14: =D15+D21+D22 -> 9179.3 | E14: =E15+E21+E22 -> 9179.3 | F14: 0
A15: Налог, взимаемый в связи с применением упрощенной системы налогообложения | B15: 182 | C15: 1 05 01000 00 0000 110 | D15: =D16+D17+D18+D19 -> 3770.4 | E15: =E16+E17+E18+E19 -> 3770.4 | F15: 0
A16: Налог, взимаемый с налогоплательщиков, выбравших в качестве объекта налогообложения доходы | B16: 182 | C16: 1 05 01010 01 0000 110 | D16: 1487 | E16: 1487 | F16: 0
A17: Налог, взимаемый с налогоплательщиков, выбравших в качестве объекта налогообложения доходы, уменьшенные на величину расходов | B17: 182 | C17: 1 05 01020 01 0000 110 | D17: 1540 | E17: 1540 | F17: 0
A18: Налог, взимаемый с налогоплательщиков, выбравших в качестве объекта налогообложения доходы, уменьшенные на величину расходов (за налоговые периоды, истекшие до 1 января 2011 года) | B18: 182 | C18: 1 05 01022 01 0000 110 | D18: 106.2 | E18: 106.2 | F18: 0
A19: Минимальный налог, зачисляемый в бюджеты субьектов РФ | B19: 182 | C19: 1 05 01050 01 0000 110 | D19: 637.2 | E19: 637.2 | F19: 0
A20: Налог, взимаемый в связи с применением патентной системы налогообложения | B20: 182 | D20: 0 | E20: 0 | F20: 0
A21: Единый налог на вмененный доход для отдельных видов деятельности | B21: 182 | C21: 1 05 02000 02 0000 110 | D21: 5310 | E21: 5310 | F21: 0
A22: Единый сельскохозяйственный налог | B22: 182 | C22: 1 05 03000 01 0000 110 | D22: 98.9 | E22: 98.9 | F22: 0
A23: ГОСУДАРСТВЕННАЯ ПОШЛИНА | B23: 000 | C23: 1 08 00000 00 0000 000 | D23: =D24+D25+D26 -> 988 | E23: 988 | F23: 0
A24: Государственная пошлина по делам, рассматриваемым в судах общей юрисдикции, мировыми судьями (за исключением Верховного Суда Российской Федерации) | B24: 182 | C24: 1 08 03010 01 0000 110 | D24: 308 | E24: 308 | F24: 0
A25: Государственная пошлина за совершение действий, связанных с лицензированием, с проведением аттестации в случаях, если такая аттестация предусмотрена законодательством Российской Федерации, зачисляемая в бюджеты муниципальных районов | B25: 917 | C25: 1 08 07084 01 1000 110 | D25: 680 | E25: 680 | F25: 0
A26: Государственная пошлина за государственную регистрацию транспортных средств и иные юридически значимые действия, связанные с изменениями и выдачей документов на транспортные средства, выдачей регистрационных знаков, приемом квалификационных экзаменов на получение права на управление транспортными средствами | B26: 000 | C26: 1 08 07141 01 0000 110 | F26: 0
A27: ЗАДОЛЖЕННОСТЬ И ПЕРЕРАСЧЕТЫ ПО ОТМЕНЕННЫМ НАЛОГАМ, СБОРАМ И ИНЫМ ОБЯЗАТЕЛЬНЫМ ПЛАТЕЖАМ | B27: 182 | C27: 1 09 00000 00 0000 000 | D27: =D28+D29 -> 1 | E27: 1 | F27: 0
A28: Налог на имущество предприятий | B28: 182 | C28: 1 09 04010 02 0000 110 | D28: 0.5 | E28: 0.5 | F28: 0
A29: Налог с продаж | B29: 182 | C29: 1 09 06010 02 0000 110 | D29: 0.5 | E29: 0.5 | F29: 0
A30: ДОХОДЫ ОТ ИСПОЛЬЗОВАНИЯ ИМУЩЕСТВА, НАХОДЯЩЕГОСЯ В ГОСУДАРСТВЕННОЙ И МУНИЦИПАЛЬНОЙ СОБСТВЕННОСТИ | B30: 000 | C30: 1 11 00000 00 0000 000 | D30: =D31+D34 -> 9990 | E30: 9990 | F30: 0
A31: Доходы, получаемые в виде арендной платы за земельные участки,государственная собственность на которые не разграничена и которые расположеныв границах поселений, а также средства от продажи права на заключение договоров аренды указанных земельных участков | B31: 000 | C31: 1 11 05013 10 0000 120 | D31: =D32+D33 -> 5090 | E31: 5090 | F31: 0
A32: Доходы, получаемые в виде арендной платы за земельные участки, государственная собственность на которые не разграничена и которые расположены в границах поселений, а также средства от продажи права на заключение договоров аренды указанных земельных участков | B32: 913 | C32: 1 11 05013 10 0000 120 | D32: 4340 | E32: 4340 | F32: 0
A33: Доходы, получаемые в виде арендной платы за земельные участки,государственная собственность на которые не разграничена и которые расположеныв границах поселений, а также средства от продажи права на заключение договоров аренды указанных земельных участков | B33: 950 | C33: 1 11 05013 10 0000 120 | D33: 750 | E33: 750 | F33: 0
A34: Доходы от сдачи в аренду имущества, находящегося в оперативном управлении органов управления муниципальных районов и созданных ими учреждений (за исключением имущества муниципальных автономных учреждений) | B34: 913 | C34: 1 11 05035 05 0000 120 | D34: 4900 | E34: 4900 | F34: 0
A35: ПЛАТЕЖИ ПРИ ПОЛЬЗОВАНИИ ПРИРОДНЫМИ РЕСУРСАМИ | B35: 048 | C35: 1 12 00000 00 0000 000 | D35: =D36 -> 179.13 | E35: 179.13 | F35: 0
A36: Плата за негативное воздействие на окружающую среду | B36: 048 | C36: 1 12 01000 01 0000 120 | D36: =D37+D38+D39 -> 179.13 | E36: 179.13 | F36: 0
A37: Плата за выбросы загрязняющих веществ в атмосферный воздух стационарными объектами | B37: 048 | C37: 1 12 01010 01 0000 120 | D37: 94.9 | E37: 94.9 | F37: 0
A38: Плата за выбросы загрязняющих веществ в атмосферный воздух передвижными объектами | B38: 048 | C38: 1 12 01020 01 0000 120 | D38: 17.93 | E38: 17.93 | F38: 0
A39: Плата за размещение отходов производства и потребления | B39: 048 | C39: 1 12 01040 01 0000 120 | D39: 66.3 | E39: 66.3 | F39: 0
A40: ДОХОДЫ ОТ ОКАЗАНИЯ ПЛАТНЫХ УСЛУГ И КОМПЕНСАЦИИ ЗАТРАТ ГОСУДАРСТВА | B40: 000 | C40: 1 13 00000 00 0000 000 | D40: =D41+D42 -> 7394 | E40: 7394 | F40: 0
A41: Прочие доходы от оказания платных услуг (работ) получателями средств бюджетов муниципальных районов | B41: 907 | C41: 113 01995 05 0000 130 | D41: 7070 | E41: 7070 | F41: 0
A42: Прочие доходы от оказания платных услуг (работ) получателями средств бюджетов муниципальных районов | B42: 904 | C42: 113 01995 05 0000 130 | D42: =D43+D44+D45+D46 -> 324 | E42: 324 | F42: 0
A43: Прочие доходы от оказания платных услуг (работ) получателями средств бюджетов муниципальных районов (МКУК МКЦ АЧРМО) | B43: 000 | C43: 113 01995 05 0000 130 | D43: 55 | E43: 55 | F43: 0
A44: Прочие доходы от оказания платных услуг (работ) получателями средств бюджетов муниципальных районов (МКУК РИК МУЗЕЙ) | B44: 000 | C44: 113 01995 05 0000 130 | D44: 21 | E44: 21 | F44: 0
A45: Прочие доходы от оказания платных услуг (работ) получателями средств бюджетов муниципальных районов (МКУК МБЧР) | B45: 000 | C45: 113 01995 05 0000 130 | D45: 26 | E45: 26 | F45: 0
A46: Прочие доходы от оказания платных услуг (работ) получателями средств бюджетов муниципальных районов (МКОУ ДОД ДШИ) | B46: 000 | C46: 113 01995 05 0000 130 | D46: 222 | E46: 222 | F46: 0
A47: ДОХОДЫ ОТ ПРОДАЖИ МАТЕРИАЛЬНЫХ И НЕМАТЕРИАЛЬНЫХ АКТИВОВ | B47: 913 | C47: 1 14 00000 00 0000 000 | D47: =D48+D50 -> 2669.3 | E47: 2669.3 | F47: 0
A48: Доходы от реализации имущества, находящегося в государственной и муниципальной собственности (за исключением имущества автономных учреждений, а также имущества государственных и муниципальных унитарных предприятий, в том числе казенных) | B48: 913 | C48: 1 14 02000 00 0000 000 | D48: =D49 -> 2600 | E48: 2600 | F48: 0
A49: Доходы от реализации иного имущества, находящегося в собственности муниципальных районов (за исключением имущества муниципальных автономных учреждений, а также имущества муниципальных унитарных предприятий, в том числе казенных), в части реализации основных средств по указанному имуществу | B49: 913 | C49: 1 14 02053 05 0000 410 | D49: 2600 | E49: 2600 | F49: 0
A50: Доходы от продажи земельных участков, находящихся в государственной и муниципальной собственности (за исключением земельных участков автономных учреждений) | B50: 913 | C50: 1 14 06000 00 0000 430 | D50: =D51 -> 69.3 | E50: 69.3 | F50: 0
A51: Доходы от продажи земельных участков, государственная собственность на которые не разграничена и которые расположены в границах поселений | B51: 913 | C51: 1 14 06013 10 0000 430 | D51: 69.3 | E51: 69.3 | F51: 0
A52: ШТРАФЫ, САНКЦИИ, ВОЗМЕЩЕНИЕ УЩЕРБА | B52: 000 | C52: 1 16 00000 00 0000 000 | D52: =D53+D54+D55+D59+D63+D62 -> 512.5 | E52: 512.5 | F52: 0
A53: Денежные взыскания (штрафы) за нарушение законодательства о налогах и сборах | B53: 182 | C53: 1 16 03000 01 0000 140 | D53: 39 | E53: 39 | F53: 0
A54: Денежные взыскания (штрафы) за административные правонарушения в области государственного регулирования производства и оборота этилового спирта, алкогольной и спиртосодержащей продукции | B54: 000 | C54: 1 16 08000 01 0000 140 | D54: 3.2 | E54: 3.2 | F54: 0
A55: Денежные взыскания (штрафы) за нарушение законодательства о недрах, об особо охраняемых природных территориях, об охране и использовании животного мира, об экологической экспертизе, в области охраны окружающей среды, земельного законодательства | B55: 000 | C55: 1 16 25000 01 0000 140 | D55: =D57+D58+D56 -> 37 | E55: 37 | F55: 0
A56: Денежные взыскания (штрафы) за нарушение законодательства о недрах | B56: 000 | C56: 1 16 25010 01 6000 140 | D56: 1 | E56: 1 | F56: 0
A57: Денежные взыскания (штрафы) за нарушение законодательства об охране и использовании животного мира | B57: 815 | C57: 1 16 25030 01 6000 140 | D57: 35 | E57: 35 | F57: 0
A58: Денежные взыскания (штрафы) за нарушение земельного законодательства | B58: 081 | C58: 1 16 25060 01 6000 140 | D58: 1 | E58: 1 | F58: 0
A59: Денежные взыскания (штрафы) за правонарушения в области дорожного движения | B59: 000 | C59: 1 16 30000 01 0000 140 | D59: =D60+D61 -> 31.7 | E59: 31.7 | F59: 0
A60: Денежные взыскания (штрафы) за административные правонарушения в области дорожного движения | B60: 188 | C60: 1 16 30014 01 0000 140 | D60: 2.7 | E60: 2.7 | F60: 0
A61: Прочие денежные взыскания (штрафы) за административные правонарушения в области дорожного движения | B61: 188 | C61: 1 16 30030 01 0000 140 | D61: 29 | E61: 29 | F61: 0
A62: Денежные взыскания (штрафы) за нарушение законодательства РФ об административных правонарушениях, предусмотренные статьей 20.25 Кодекса РФ об административных правонарушений | B62: 188 | C62: 1 16 43000 01 0000 140 | D62: 2.2 | E62: 2.2 | F62: 0
A63: Прочие поступления от денежных взысканий (штрафов) и иных сумм в возмещение ущерба, зачисляемые в бюджеты муниципальных районов | B63: 000 | C63: 1 16 90050 05 0000 140 | D63: =D64+D65+D66+D67+D68+D69+D70 -> 399.4 | E63: 399.4 | F63: 0
A64: Прочие поступления от денежных взысканий (штрафов) и иных сумм в возмещение ущерба, зачисляемые в бюджеты муниципальных районов | B64: 081 | C64: 1 16 90050 05 0000 140 | D64: 15 | E64: 15 | F64: 0
A65: Прочие поступления от денежных взысканий (штрафов) и иных сумм в возмещение ущерба, зачисляемые в бюджеты муниципальных районов | B65: 177 | C65: 1 16 90050 05 0000 140 | D65: 38 | E65: 38 | F65: 0
A66: Прочие поступления от денежных взысканий (штрафов) и иных сумм в возмещение ущерба, зачисляемые в бюджеты муниципальных районов | B66: 188 | C66: 1 16 90050 05 0000 140 | D66: 59 | E66: 59 | F66: 0
A67: Прочие поступления от денежных взысканий (штрафов) и иных сумм в возмещение ущерба, зачисляемые в бюджеты муниципальных районов | B67: 192 | C67: 1 16 90050 05 0000 140 | D67: 170 | E67: 170 | F67: 0
A68: Прочие поступления от денежных взысканий (штрафов) и иных сумм в возмещение ущерба, зачисляемые в бюджеты муниципальных районов | B68: 415 | C68: 1 16 90050 05 0000 140 | D68: 60 | E68: 60 | F68: 0
A69: Прочие поступления от денежных взысканий (штрафов) и иных сумм в возмещение ущерба, зачисляемые в бюджеты муниципальных районов | B69: 809 | C69: 1 16 90050 05 0000 140 | D69: 50 | E69: 50 | F69: 0
A70: Прочие поступления от денежных взысканий (штрафов) и иных сумм в возмещение ущерба, зачисляемые в бюджеты муниципальных районов | B70: 917 | C70: 1 16 90050 05 0000 140 | D70: 7.4 | E70: 7.4 | F70: 0
A71: ПРОЧИЕ НЕНАЛОГОВЫЕ ДОХОДЫ | B71: 000 | C71: 1 17 00000 00 0000 000 | D71: =D72+D73 -> 300 | E71: 300 | F71: 0
A72: Невыясненные поступления | B72: 000 | C72: 1 17 01000 00 0000 180 | D72: 0 | E72: 0 | F72: 0
A73: Прочие неналоговые доходы | B73: 000 | C73: 1 17 05000 00 0000 180 | D73: 300 | E73: 300 | F73: =E73-D73 -> 0
A74: БЕЗВОЗМЕЗДНЫЕ ПОСТУПЛЕНИЯ | B74: 000 | C74: 2 00 00000 00 0000 000 | D74: =D75+D124+D126 -> 393504.9 | E74: =E75+E124+E126 -> 398931.9011 | F74: 5427.00115
A75: БЕЗВОЗМЕЗДНЫЕ ПОСТУПЛЕНИЯ ИЗ ДРУГИХ БЮДЖЕТОВ БЮДЖЕТНОЙ СИСТЕМЫ РФ | B75: 000 | C75: 2 02 00000 00 0000 151 | D75: =D76+D79+D95+D111 -> 393504.9 | E75: =E76+E79+E95+E111 -> 399119.8251 | F75: 5614.92507
A76: ДОТАЦИИ БЮДЖЕТАМ МУНИЦИПАЛЬНЫХ ОБРАЗОВАНИЙ | B76: 000 | C76: 2 02 01000 00 0000 151 | D76: =D77+D78 -> 124989 | E76: 124989 | F76: 0
A77: Дотации муниципальным районам на выравнивание уровня бюджетной обеспеченности | B77: 910 | C77: 2 02 01001 05 0000 151 | D77: 124989 | E77: 124989 | F77: 0
A78: Дотации муниципальным районам на поддержку мер по обеспечению сбалансированности бюджетов | B78: 910 | C78: 2 02 01003 05 0000 151 | D78: 0 | E78: 0 | F78: 0
A79: СУБСИДИИ БЮДЖЕТАМ МУНИЦИПАЛЬНЫХ ОБРАЗОВАНИЙ | B79: 000 | C79: 2 02 02000 00 0000 151 | D79: =D80+D81+D82+D83 -> 11377.1 | E79: 15206.1 | F79: 3829
A80: Федеральная программа "Молодым семьям - доступное жилье на 2005-2019 годы" | B80: 917 | C80: 2 02 02051 05 0000 151 | D80: 0 | E80: 0 | F80: 0
A81: Долгосрочная целевая программа "Энергосбережение и повышение энергетической эффективности на территории Иркутской области на 2011-2015 годы и на период до 2020 года | B81: 910 | C81: 2 02 02150 05 0000 151 | D81: 0 | E81: 0 | F81: 0
A82: Областная государственная социальная программа "Молодым семьям- доступное жилье" на 2005-2019 годы" | B82: 917 | C82: 2 02 02008 05 0000 151 | D82: 0 | E82: 0 | F82: 0
A83: Прочие субсидии | B83: 000 | C83: 2 02 02999 05 0000 151 | D83: =D84+D85+D86+D87+D88+D89+D91+D92+D94+D93+D90 -> 11377.1 | E83: =E84+E85+E86+E87+E88+E89+E91+E92+E94+E93+E90 -> 15206.1 | F83: 3829
A84: Субсидии на выплату заработной платы с начислениями на нее педагогическим работникам муниципальных дошкольных образовательных учреждений | B84: 907 | C84: 2 02 02999 05 0000 151 | D84: 2005.1 | E84: 2005.1 | F84: 0
A85: Субсидия за счет средств долгосрочной целевой программы Иркутской области "Повышение эффективности бюджетных расходов Иркутской области на 2011-2013 годы" | B85: 910 | C85: 2 02 02999 05 0000 151 | D85: 9372 | E85: 9372 | F85: 0
A86: Погашение кредиторской задолженности учреждений, находящихся в ведении органов местного самоуправления муниципальных образований Иркутской области, по страховым взносам на обязательное пенсионное страхование, сложившейся за период с 1 января 2002 года до 31 декабря 2009 года, и по страховым взносам на обязательное пенсионное страхование, обязательное медицинское страхование и обязательное социальное страхование на случай временной нетрудоспособности и в связи с материнством за период 2010-2011 годы, а также пеней и штрафов, начисленных на задолженность 2010-2011 годов | B86: 910 | C86: 2 02 02999 05 0000 151 | D86: 0 | E86: 0 | F86: 0
A87: Погашение реструктуризированной кредиторской задолженности учреждений, находящихся в ведении органов местного самоуправления муниципальных образований Иркутской области, по страховым взносам на обязательное пенсионное страхование, сложившейся за период с 1 января 2002 года до 31 декабря 2009 года, и по страховым взносам на обязательное пенсионное страхование, обязательное медицинское страхование и обязательное социальное страхование на случай временной нетрудоспособности и в связи с материнством за период 2010-2011 годы, а также пеней и штрафов, начисленных на задолженность 2010-2011 годов | B87: 910 | C87: 2 02 02999 05 0000 151 | D87: 0 | E87: 0 | F87: 0
A88: Долгосрочная целевая программа "Социальное развитие села Иркутской области на 2011-2014 годы" | B88: 907 | C88: 2 02 02999 05 0000 151 | F88: 0
A89: Долгосрочная целевая программа Иркутской области "100 модельных домов культуры Приангарью" на 2011-2014 годы | B89: 917 | C89: 2 02 02999 05 0000 151 | D89: 0 | E89: 0 | F89: 0
A90: ДЦП "Развитие автомобильных дорог общего пользования регионального или межмуниципального значения и местного значения в Иркутской области на 2011-2015 годы " | B90: 917 | C90: 2 02 02999 05 0000 151 | D90: 0 | E90: 3829 | F90: 3829
A91: Долгосрочная целевая программа Иркутской области «Организация и обеспечение отдыха и оздоровления детей в Иркутской области на 2012-2014 годы» | B91: 907 | C91: 2 02 02999 05 0000 151 | D91: 0 | E91: 0 | F91: 0
A92: Долгосрочная целевая программа поддержки и развития учреждений дошкольного образования в Иркутской области на 2009-2014 годы» | B92: 907 | C92: 2 02 02999 05 0000 151 | D92: 0 | E92: 0 | F92: 0
A93: Долгосрочная целевая программа «Поддержка и развитие малого и среднего предпринимательства в Иркутской области» на 2011-2012 годы (за счет федерального бюджета) | B93: 917 | C93: 2 02 02999 05 0000 151 | D93: 0 | E93: 0 | F93: 0
A94: Долгосрочная целевая программа «Поддержка и развитие малого и среднего предпринимательства в Иркутской области» на 2011-2012 годы (за счет областного бюджета) | B94: 917 | C94: 2 02 02999 05 0000 151 | D94: 0 | E94: 0 | F94: 0
A95: СУБВЕНЦИИ БЮДЖЕТАМ МУНИЦИПАЛЬНЫХ ОБРАЗОВАНИЙ | B95: 000 | C95: 2 02 03000 00 0000 151 | D95: =D97+D98+D99+D101+D102+D103+D104+D105+D106+D107+D108+D109 -> 256144.5 | E95: =E97+E98+E99+E101+E102+E103+E104+E105+E106+E107+E108+E109 -> 256144.5 | F95: 0
A96: Субвенции бюджетам муниципальных районов на осуществление полномочий по подготовке проведения статистических переписей | B96: 917 | C96: 2 02 03002 05 0000 151 | F96: 0
A97: Субвенции бюджетам муниципальных районов на составление списков кандидатов в присяжные заседатели федеральных судов общей юрисдикции в Российской Федерации | B97: 917 | C97: 2 02 03007 05 0000 151 | D97: 0 | E97: 0 | F97: 0
A98: Субвенции бюджетам на ежемесячное денежное вознаграждение за классное руководство | B98: 907 | C98: 2 02 03021 05 0000 151 | D98: 0 | E98: 0 | F98: 0
A99: Субвенции бюджетам муниципальных образований на предоставление гражданам субсидий на оплату жилого помещения и коммунальных услуг | B99: 918 | C99: 2 02 03022 05 0000 151 | D99: 7534.2 | E99: 7534.2 | F99: 0
A100: Субвенции местным бюджетам на выполнение переданных полномочий субъектов РФ | B100: 000 | C100: 2 02 03024 05 0000 151 | D100: =D101+D102+D103+D104+D105+D106 -> 10028.8 | E100: =E101+E102+E103+E104+E105+E106 -> 10028.8 | F100: 0
A101: Хранение, комплектование, учет и использование архивных документов, относящихся к областной государственной собственности | B101: 917 | C101: 2 02 03024 05 0000 151 | D101: 1086 | E101: 1086 | F101: 0
A102: Государственные полномочия в области охраны труда | B102: 917 | C102: 2 02 03024 05 0000 151 | D102: 563.6 | E102: 563.6 | F102: 0
A103: Определение персонального состава и обеспечение деятельности районных (городских), районных в городах комиссий по делам несовершеннолетних и защите их прав | B103: 917 | C103: 2 02 03024 05 0000 151 | D103: 1078.1 | E103: 1078.1 | F103: 0
A104: Лицензирование розничной продажи алкогольной продукции | B104: 917 | C104: 2 02 03024 05 0000 151 | D104: 375.7 | E104: 375.7 | F104: 0
A105: Определение персонального состава и обеспечение деятельности административных комиссий | B105: 917 | C105: 2 02 03024 05 0000 151 | D105: 563.6 | E105: 563.6 | F105: 0
A106: Предоставление мер социальной поддержки многодетным и малоимущим семьям | B106: 907 | C106: 2 02 03024 05 0000 151 | D106: 6361.8 | E106: 6361.8 | F106: 0
A107: Субвенции бюджетам муниципальных районов на обеспечение жилыми помещениями детей-сирот, детей, оставшихся без попечения родителей, а также детей, находящихся под опекой (попечительством), не имеющих закрепленного жилого помещения | B107: 913 | C107: 2 02 03026 05 0000 151 | D107: 0 | E107: 0 | F107: 0
A108: Субвенции бюджетам муниципальных районов на обеспечение жилыми помещениями детей-сирот, детей, оставшихся без попечения родителей, а также детей, находящихся под опекой (попечительством), не имеющих закрепленного жилого помещения (федер.) | B108: 913 | C108: 2 02 03026 05 0000 151 | D108: 0 | E108: 0 | F108: 0
A109: Прочие субвенции | B109: 000 | C109: 2 02 03999 05 0000 151 | D109: =D110 -> 238581.5 | E109: 238581.5 | F109: 0
A110: Субвенция на обеспечение государственных гарантий прав граждан на получение общедоступного и бесплатного дошкольного, начального общего, основного общего, среднего (полного) общего образования, а также дополнительного образования в общеобразовательных учреждениях | B110: 907 | C110: 2 02 03999 05 0000 151 | D110: 238581.5 | E110: 238581.5 | F110: 0
A111: ИНЫЕ МЕЖБЮДЖЕТНЫЕ ТРАНСФЕРТЫ | B111: 000 | C111: 2 02 04000 00 0000 151 | D111: =D112+D117+D118+D122 -> 994.3 | E111: =E112+E117+E118+E122 -> 2780.22507 | F111: 1785.92507
A112: Межбюджетные трансферты, передаваемые бюджетам муниципальных районов из бюджетов поселений на осуществление части полномочий по решению вопросов местного значения в соответствии с заключенными соглашениями | B112: 000 | C112: 2 02 04014 05 0000 151 | D112: =D113+D114+D115+D116 -> 0 | E112: 1785.92507 | F112: 1785.92507
A113: Межбюджетные трансферты, передаваемые бюджетам муниципальных районов из бюджетов поселений на осуществление части полномочий по решению вопросов местного значения в соответствии с заключенными соглашениями (ФУ) | B113: 910 | C113: 2 02 04014 05 0000 151 | D113: 0 | E113: 921.19104 | F113: 921.19104
A114: Межбюджетные трансферты, передаваемые бюджетам муниципальных районов из бюджетов поселений на осуществление части полномочий по решению вопросов местного значения в соответствии с заключенными соглашениями (ГО и ЧС) | B114: 917 | C114: 2 02 04014 05 0000 151 | D114: 0 | E114: 460.59552 | F114: 460.59552
A115: Межбюджетные трансферты, передаваемые бюджетам муниципальных районов из бюджетов поселений на осуществление части полномочий по решению вопросов местного значения в соответствии с заключенными соглашениями (генплан) | B115: 918 | C115: 2 02 04014 05 0000 151 | D115: 0 | E115: 30.2 | F115: 30.2
A116: Межбюджетные трансферты, передаваемые бюджетам муниципальных районов из бюджетов поселений на осуществление части полномочий по решению вопросов местного значения в соответствии с заключенными соглашениями (КСП ) | B116: 923 | C116: 2 02 04014 05 0000 151 | D116: 0 | E116: 373.93851 | F116: 373.93851
A117: Межбюджетные трансферты, передаваемые бюджетам муниципальных районов на комплектование книжных фондов библиотек муниципальных образований (областной бюджет) | B117: 910 | C117: 2 02 04025 05 0000 151 | D117: 162.7 | E117: 162.7 | F117: 0
A118: Межбюджетные трансферты, передаваемые бюджетам муниципальных районов на комплектование книжных фондов библиотек муниципальных образований (федеральный бюджет) | B118: 910 | C118: 2 02 04025 05 0000 151 | D118: 303.6 | E118: 303.6 | F118: 0
A119: Прочие межбюджетные трансферты, передаваемые бюджетам муниципальных районов | B119: 000 | C119: 2 02 04999 05 0000 151 | F119: 0
A120: Дотации на возмещ.расходов местных бюджетов в связи с предоставлением льгот по оплате жилого помещения и коммунальных услуг педагогическим работникам, проживающим в сельской местности, рабочих поселках (пгт) и работающим в муниц.образоват.учреждениях | B120: 907 | C120: 2 02 04999 05 0000 151 | F120: 0
A121: Межбюджетные трансферты в целях финансовой поддержки муниципальных образований Иркутской области, осуществляющих эффективное управление бюджетными средствами | B121: 910 | C121: 2 02 04999 05 0000 151 | F121: 0
A122: ПРОЧИЕ МЕЖБЮДЖЕТНЫЕ ТРАНСФЕРТЫ | B122: 000 | C122: 2 02 04999 00 0000 151 | D122: =D123 -> 528 | E122: 528 | F122: 0
A123: Исполнение судебных актов, вступивших в силу до 1 января 2013 года, по обеспечению жилыми помещениями детей-сирот и детей, оставшихся без попечения родителей, лиц из числа детей-сирот и детей, оставшихся без попечения родителей, не имеющих закрепленного жилого помещения | B123: 913 | C123: 2 02 04999 05 0000 151 | D123: 528 | E123: 528 | F123: 0
A124: ПРОЧИЕ БЕЗВОЗМЕЗДНЫЕ ПОСТУПЛЕНИЯ | B124: 000 | C124: 2 07 00000 00 0000 180 | D124: =D125 -> 0 | E124: 14 | F124: 14
A125: Прочие безвозмездные поступления в бюджеты муниципальных районов | B125: 000 | C125: 2 07 05030 05 0000 180 | D125: 0 | E125: 14 | F125: 14
A126: ВОЗВРАТ ОТСТАКОВ СУБСИДИЙ И СУБВЕНЦИЙ | B126: 000 | C126: 2 19 00000 00 0000 000 | D126: =D127 -> 0 | E126: -201.92392 | F126: -201.92392
A127: Возврат остатков субсидий и субвенций из бюджетов муниципальных районов | B127: 910 | C127: 2 19 05000 05 0000 180 | D127: 0 | E127: -201.92392 | F127: -201.92392
A128: ИТОГО ДОХОДОВ | B128: 000 | C128: 8 50 00000 00 0000 000 | D128: =D74+D8 -> 474741.83 | E128: =E74+E8 -> 480168.8311 | F128: 5427.00115
A130: Начальник финансового управления | D130: Ю.Н. Гайдук | E130: Ю.Н. Гайдук

Sheet прил3 (админ)
A6: Перечень главных администраторов доходов бюджета Черемховского районного муниципального образования - органов местного самоуправления Черемховского районного муниципального образования
A8: Код бюджетной классификации РФ | C8: Наименование главного администратора доходов районного бюджета
A9: главного администратора доходов | B9: доходов районного бюджета
A10: 904 | C10: Отдел по культуре и библиотечному обслуживанию администрации Черемховского районного муниципального образования
A11: 904 | B11: 1 13 01995 05 0000 130 | C11: Прочие доходы от оказания платных услуг получателями средств бюджетов муниципальных районов и компенсации затрат бюджетов муниципальных районов
A12: 904 | B12: 1 17 01050 05 0000 180 | C12: Невыясненные поступления, зачисляемые в бюджеты муниципальных районов
A13: 904 | B13: 1 17 05050 05 0000 180 | C13: Прочие неналоговые доходы бюджетов муниципальных районов
A14: 904 | B14: 2 02 01999 05 0000 151 | C14: Прочие дотации бюджетам муниципальных районов
A15: 904 | B15: 2 02 02999 05 0000 151 | C15: Прочие субсидии бюджетам муниципальных районов
A16: 904 | B16: 2 02 03999 05 0000 151 | C16: Прочие субвенции бюджетам муниципальных районов
A17: 904 | B17: 2 02 04999 05 0000 151 | C17: Прочие межбюджетные трансферты, передаваемые бюджетам муниципальных районов
A18: 904 | B18: 2 07 05030 05 0000 180 | C18: Прочие безвозмездные поступления в бюджеты муниципальных районов
A19: 907 | C19: Отдел образования администрации Черемховского районного муниципального образования
A20: 907 | B20: 1 13 01995 05 0000 130 | C20: Прочие доходы от оказания платных услуг получателями средств бюджетов муниципальных районов и компенсации затрат бюджетов муниципальных районов
A21: 907 | B21: 1 17 01050 05 0000 180 | C21: Невыясненные поступления, зачисляемые в бюджеты муниципальных районов
A22: 907 | B22: 1 17 05050 05 0000 180 | C22: Прочие неналоговые доходы бюджетов муниципальных районов
A23: 907 | B23: 2 02 01999 05 0000 151 | C23: Прочие дотации бюджетам муниципальных районов
A24: 907 | B24: 2 02 02022 05 0000 151 | C24: Субсидии бюджетам муниципальных образований на внедрение инновационных образовательных программ
A25: 907 | B25: 2 02 02999 05 0000 151 | C25: Прочие субсидии бюджетам муниципальных районов
A26: 907 | B26: 2 02 03021 05 0000 151 | C26: Субвенции бюджетам муниципальных районов на ежемесячное денежное вознаграждение за классное руководство
A27: 907 | B27: 2 02 03024 05 0000 151 | C27: Субвенции бюджетам муниципальных районов на выполнение передаваемых полномочий субъектов РФ
A28: 907 | B28: 2 02 03999 05 0000 151 | C28: Прочие субвенции бюджетам муниципальных районов
A29: 907 | B29: 2 02 04999 05 0000 151 | C29: Прочие межбюджетные трансферты, передаваемые бюджетам муниципальных районов
A30: 907 | B30: 2 07 05030 05 0000 180 | C30: Прочие безвозмездные поступления в бюджеты муниципальных районов
A31: 910 | C31: Финансовое управление Администрации Черемховского районного муниципального образования
A32: 910 | B32: 1 17 01050 05 0000 180 | C32: Невыясненные поступления, зачисляемые в бюджеты муниципальных районов
A33: 910 | B33: 1 17 05050 05 0000 180 | C33: Прочие неналоговые доходы бюджетов муниципальных районов
A34: 910 | B34: 2 02 01001 05 0000 151 | C34: Дотации бюджетам муниципальных районов на выравнивание уровня бюджетной обеспеченности
A35: 910 | B35: 2 02 01003 05 0000 151 | C35: Дотации бюджетам муниципальных районов на поддержку мер по обеспечению сбалансированности бюджетов
A36: 910 | B36: 2 02 01999 05 0000 151 | C36: Прочие дотации бюджетам муниципальных районов
A37: 910 | B37: 2 02 02008 05 0000 151 | C37: Субсидии бюджетам муниципальных районов на обеспечение жильем молодых семей
A38: 910 | B38: 2 02 02999 05 0000 151 | C38: Прочие субсидии бюджетам муниципальных районов
A39: 910 | B39: 2 02 03999 05 0000 151 | C39: Прочие субвенции бюджетам муниципальных районов
A40: 910 | B40: 2 02 04014 05 0000 151 | C40: Межбюджетные трансферты, передаваемые бюджетам муниципальных районов из бюджетов поселений на осуществление части полномочий по решению вопросов местного значения в соответствии с заключенными соглашениями
A41: 910 | B41: 2 02 04025 05 0000 151 | C41: Межбюджетные трансферты, передаваемые бюджетам муниципальных районов на комплектование книжных фондов библиотек муниципальных образований
A42: 910 | B42: 2 02 04999 05 0000 151 | C42: Прочие межбюджетные трансферты, передаваемые бюджетам муниципальных районов
A43: 910 | B43: 2 07 05030 05 0000 180 | C43: Прочие безвозмездные поступления в бюджеты муниципальных районов
A44: 910 | B44: 2 08 05000 05 0000 180 | C44: Перечисления из бюджетов муниципальных районов (в бюджеты муниципальных районов) для осуществления возврата (зачета) излишне уплаченных или излишне взысканных сумм налогов, сборов и иных платежей, а также сумм процентов за несвоевременное осуществление такого возврата и процентов, начисленных на излишне взысканные суммы
A45: 910 | B45: 2 19 05000 05 0000 151 | C45: Возврат остатков субсидий и субвенций из бюджетов муниципальных районов
A46: 913 | C46: Комитет по управлению муниципальным имуществом администрации Черемховского районного муниципального образования
A47: 913 | B47: 1 11 05013 10 0000 120 | C47: Доходы, получаемые в виде арендной платы за земельные участки, государственная собственность на которые не разграничена и которые расположены в границах поселений, а также средства от продажи права на заключение договоров аренды указанных земельных участков
A48: 913 | B48: 1 11 05035 05 0000 120 | C48: Доходы от сдачи в аренду имущества, находящегося в оперативном управлении органов управления муниципальных районов и созданных ими учреждений (за исключением имущества муниципальных автономных учреждений)
A49: 913 | B49: 1 14 02052 05 0000 410 | C49: Доходы от реализации имущества, находящегося в оперативном управлении учреждений, находящихся в ведении органов управления муниципальных районов (за исключением имущества муниципальных автономных учреждений), в части реализации основных средств по указанному имуществу
A50: 913 | B50: 1 14 02052 05 0000 440 | C50: Доходы от реализации имущества, находящегося в оперативном управлении учреждений, находящихся в ведении органов управления муниципальных районов (за исключением имущества муниципальных автономных учреждений), в части реализации материальных запасов по указанному имуществу
A51: 913 | B51: 1 14 02053 05 0000 410 | C51: Доходы от реализации иного имущества, находящегося в собственности муниципальных районов (за исключением имущества муниципальных автономных учреждений, а также имущества муниципальных унитарных предприятий, в том числе казенных), в части реализации основных средств по указанному имуществу
A52: 913 | B52: 1 14 02053 05 0000 440 | C52: Доходы от реализации иного имущества, находящегося в собственности муниципальных районов (за исключением имущества муниципальных автономных учреждений, а также имущества муниципальных унитарных предприятий, в том числе казенных), в части реализации материальных запасов по указанному имуществу
A53: 913 | B53: 1 14 06014 10 0000 430 | C53: Доходы от продажи земельных участков, государственная собственность на которые не разграничена и которые расположены в границах поселений
A54: 913 | B54: 1 14 06025 05 0000 430 | C54: Доходы от продажи земельных участков, находящихся в собственности муниципальных районов (за исключением земельных участков муниципальных автономных учреждений)
A55: 913 | B55: 1 17 01050 05 0000 180 | C55: Невыясненные поступления, зачисляемые в бюджеты муниципальных районов
A56: 913 | B56: 1 17 05050 05 0000 180 | C56: Прочие неналоговые доходы бюджетов муниципальных районов
A57: 913 | B57: 2 02 03026 05 0000 151 | C57: Субвенции бюджетам муниципальных районов на обеспечение жилыми помещениями детей-сирот, детей, оставшихся без попечения родителей, а также детей, находящихся под опекой (попечительством), не имеющих закрепленного жилого помещения
A58: 913 | B58: 2 02 04999 05 0000 151 | C58: Прочие межбюджетные трансферты, передаваемые бюджетам муниципальных районов
A59: 917 | C59: Администрация Черемховского районного муниципального образования
A60: 917 | B60: 1 08 07084 01 1000 110 | C60: Государственная пошлина за совершение действий, связанных с лицензированием, с проведением аттестации в случаях, если такая аттестация предусмотрена законодательством Российской Федерации, зачисляемая в бюджеты муниципальных районов
A61: 917 | B61: 1 16 90050 05 0000 140 | C61: Прочие поступления от денежных взысканий (штрафов) и иных сумм в возмещение ущерба, зачисляемые в бюджеты муниципальных районов
A62: 917 | B62: 1 17 01050 05 0000 180 | C62: Невыясненные поступления, зачисляемые в бюджеты муниципальных районов
A63: 917 | B63: 1 17 05050 05 0000 180 | C63: Прочие неналоговые доходы бюджетов муниципальных районов
A64: 917 | B64: 2 02 01999 05 0000 151 | C64: Прочие дотации бюджетам муниципальных районов
A65: 917 | B65: 2 02 02008 05 0000 151 | C65: Субсидии бюджетам муниципальных районов на обеспечение жильем молодых семей
A66: 917 | B66: 2 02 02105 05 0000 151 | C66: Субсидии бюджетам муниципальных районов на проведение противоаварийных мероприятий в зданиях государственных и муниципальных общеобразовательных учреждений
A67: 917 | B67: 2 02 02999 05 0000 151 | C67: Прочие субсидии бюджетам муниципальных районов
A68: 917 | B68: 2 02 03002 05 0000 151 | C68: Субвенции бюджетам муниципальных районов на осуществление полномочий по подготовке проведения статистических переписей
A69: 917 | B69: 2 02 03007 05 0000 151 | C69: Субвенции бюджетам муниципальных районов на составление списков кандидатов в присяжные заседатели федеральных судов общей юрисдикции в Российской Федерации
A70: 917 | B70: 2 02 03024 05 0000 151 | C70: Субвенции бюджетам муниципальных районов на выполнение передаваемых полномочий субъектов РФ
A71: 917 | B71: 2 02 03999 05 0000 151 | C71: Прочие субвенции бюджетам муниципальных районов
A72: 917 | B72: 2 02 04014 05 0000 151 | C72: Межбюджетные трансферты, передаваемые бюджетам муниципальных районов из бюджетов поселений на осуществление части полномочий по решению вопросов местного значения в соответствии с заключенными соглашениями
A73: 917 | B73: 2 02 04999 05 0000 151 | C73: Прочие межбюджетные трансферты, передаваемые бюджетам муниципальных районов
A74: 917 | B74: 2 07 05030 05 0000 180 | C74: Прочие безвозмездные поступления в бюджеты муниципальных районов
A75: 917 | B75: 2 18 05010 05 0000 180 | C75: Доходы бюджетов муниципальных районов от возврата бюджетными учреждениями остатков субсидий прошлых лет
A76: 918 | C76: Управление жилищно-коммунального хозяйства, строительства, транспорта, связи и экологии администрации Черемховского районного муниципального образования
A77: 918 | B77: 1 16 90050 05 0000 140 | C77: Прочие поступления от денежных взысканий (штрафов) и иных сумм в возмещение ущерба, зачисляемые в бюджеты муниципальных районов
A78: 918 | B78: 1 17 01050 05 0000 180 | C78: Невыясненные поступления, зачисляемые в бюджеты муниципальных районов
A79: 918 | B79: 1 17 05050 05 0000 180 | C79: Прочие неналоговые доходы бюджетов муниципальных районов
A80: 918 | B80: 2 02 03022 05 0000 151 | C80: Субвенции бюджетам муниципальных образований на предоставление гражданам субсидий на оплату жилого помещения и коммунальных услуг
A81: 918 | B81: 2 02 04014 05 0000 151 | C81: Межбюджетные трансферты, передаваемые бюджетам муниципальных районов из бюджетов поселений на осуществление части полномочий по решению вопросов местного значения в соответствии с заключенными соглашениями
A82: 918 | B82: 2 07 05030 05 0000 180 | C82: Прочие безвозмездные поступления в бюджеты муниципальных районов
A83: 923 | C83: Контрольно-счетная палата Черемховского районного муниципального образования
A84: 923 | B84: 1 17 01050 05 0000 180 | C84: Невыясненные поступления, зачисляемые в бюджеты муниципальных районов
A85: 923 | B85: 1 17 05050 05 0000 180 | C85: Прочие неналоговые доходы бюджетов муниципальных районов
A86: 923 | B86: 2 02 04014 05 0000 151 | C86: Межбюджетные трансферты, передаваемые бюджетам муниципальных районов из бюджетов поселений на осуществление части полномочий по решению вопросов местного значения в соответствии с заключенными соглашениями
A88: Начальник финансового управления | D88: Ю.Н. Гайдук

Sheet прил6
A9: Распределение бюджетных ассигнований по разделам, подразделам, целевым статьям и видам расходов классификации расходов бюджетов на 2013 год
A12: Наименование показателя | B12: Код | F12: Сумма, тыс. руб.
B13: раздела | C13: подраздела | D13: целевой статьи | E13: вида расходов
A14: 1 | B14: 2 | C14: 3 | D14: 4 | E14: 5 | F14: 6
A15: ОБЩЕГОСУДАРСТВЕННЫЕ ВОПРОСЫ | B15: 1 | C15: 0 | D15: 0 | E15: 0 | F15: 69294.8
A16: Функционирование высшего должностного лица субъекта Российской Федерации и муниципального образования | B16: 1 | C16: 2 | D16: 0 | E16: 0 | F16: 2412
A17: Руководство и управление в сфере установленных функций органов государственной власти субъектов Российской Федерации и органов местного самоуправления | B17: 1 | C17: 2 | D17: 20000 | E17: 0 | F17: 2412
A18: Глава муниципального образования | B18: 1 | C18: 2 | D18: 20300 | E18: 0 | F18: 2412
A19: Выполнение функций органами местного самоуправления | B19: 1 | C19: 2 | D19: 20300 | E19: 500 | F19: 2412
A20: Функционирование законодательных (представительных) органов государственной власти и представительных органов муниципальных образований | B20: 1 | C20: 3 | D20: 0 | E20: 0 | F20: 1206.1
A21: Руководство и управление в сфере установленных функций органов государственной власти субъектов Российской Федерации и органов местного самоуправления | B21: 1 | C21: 3 | D21: 20000 | E21: 0 | F21: 1206.1
A22: Центральный аппарат | B22: 1 | C22: 3 | D22: 20400 | E22: 0 | F22: 372.1
A23: Выполнение функций органами местного самоуправления | B23: 1 | C23: 3 | D23: 20400 | E23: 500 | F23: 372.1
A24: Председатель представительного органа муниципального образования | B24: 1 | C24: 3 | D24: 21100 | E24: 0 | F24: 834
A25: Выполнение функций органами местного самоуправления | B25: 1 | C25: 3 | D25: 21100 | E25: 500 | F25: 834
A26: Функционирование Правительства Российской Федерации, высших исполнительных органов государственной власти субъектов Российской Федерации, местных администраций | B26: 1 | C26: 4 | D26: 0 | E26: 0 | F26: 25663.4
A27: Руководство и управление в сфере установленных функций органов государственной власти субъектов Российской Федерации и органов местного самоуправления | B27: 1 | C27: 4 | D27: 20000 | E27: 0 | F27: 25663.4
A28: Центральный аппарат | B28: 1 | C28: 4 | D28: 20400 | E28: 0 | F28: 25663.4
A29: Выполнение функций органами местного самоуправления | B29: 1 | C29: 4 | D29: 20400 | E29: 500 | F29: 25663.4
A30: Обеспечение деятельности финансовых, налоговых и таможенных органов и органов финансового (финансово-бюджетного) надзора | B30: 1 | C30: 6 | D30: 0 | E30: 0 | F30: 11159.1
A31: Руководство и управление в сфере установленных функций органов государственной власти субъектов Российской Федерации и органов местного самоуправления | B31: 1 | C31: 6 | D31: 20000 | E31: 0 | F31: 10959.1
A32: Центральный аппарат | B32: 1 | C32: 6 | D32: 20400 | E32: 0 | F32: 9876.7
A33: Выполнение функций органами местного самоуправления | B33: 1 | C33: 6 | D33: 20400 | E33: 500 | F33: 9876.7
A34: Руководитель контрольно-счетной палаты муниципального образования и его заместители | B34: 1 | C34: 6 | D34: 22500 | E34: 0 | F34: 1082.4
A35: Выполнение функций органами местного самоуправления | B35: 1 | C35: 6 | D35: 22500 | E35: 500 | F35: 1082.4
A36: Целевые программы муниципальных образований | B36: 1 | C36: 6 | D36: 7950000 | E36: 0 | F36: 200
A37: Долгосрочная целевая программа Черемховского районного муниципального образования "Повышение эффективности бюджетных расходов Черемховского районного муниципального образования на 2012-2013 годы" | B37: 1 | C37: 6 | D37: 7950200 | E37: 0 | F37: 200
A38: Выполнение функций органами местного самоуправления | B38: 1 | C38: 6 | D38: 7950200 | E38: 500 | F38: 200
A39: Резервные фонды | B39: 1 | C39: 11 | D39: 0 | E39: 0 | F39: 300
A40: Резервные фонды | B40: 1 | C40: 11 | D40: 700000 | E40: 0 | F40: 300
A41: Резервные фонды местных администраций | B41: 1 | C41: 11 | D41: 700500 | E41: 0 | F41: 300
A42: Выполнение функций органами местного самоуправления | B42: 1 | C42: 11 | D42: 700500 | E42: 500 | F42: 300
A43: Другие общегосударственные вопросы | B43: 1 | C43: 13 | D43: 0 | E43: 0 | F43: 28554.2
A44: Руководство и управление в сфере установленных функций органов государственной власти субъектов Российской Федерации и органов местного самоуправления | B44: 1 | C44: 13 | D44: 20000 | E44: 0 | F44: 20045.7
A45: Центральный аппарат | B45: 1 | C45: 13 | D45: 20400 | E45: 0 | F45: 2932.3
A46: Выполнение функций органами местного самоуправления | B46: 1 | C46: 13 | D46: 20400 | E46: 500 | F46: 2932.3
A47: Осуществление областных государственных полномочий по хранению, комплектованию, учету и использованию архивных документов, относящихся к государственной собственности Иркутской области | B47: 1 | C47: 13 | D47: 24000 | E47: 0 | F47: 1086
A48: Выполнение функций органами местного самоуправления | B48: 1 | C48: 13 | D48: 24000 | E48: 500 | F48: 1086
A49: Осуществление областных государственных полномочий по определению персонального состава и обеспечению деятельности административных комиссий | B49: 1 | C49: 13 | D49: 24300 | E49: 0 | F49: 563.6
A50: Выполнение функций органами местного самоуправления | B50: 1 | C50: 13 | D50: 24300 | E50: 500 | F50: 563.6
A51: Осуществление отдельных государственных полномочий в области производства и оборота этилового спирта, алкогольной и спиртосодержащей продукции | B51: 1 | C51: 13 | D51: 24400 | E51: 0 | F51: 375.7
A52: Выполнение функций органами местного самоуправления | B52: 1 | C52: 13 | D52: 24400 | E52: 500 | F52: 375.7
A53: Осуществление отдельных областных государственных полномочий в области охраны труда | B53: 1 | C53: 13 | D53: 24500 | E53: 0 | F53: 563.6
A54: Выполнение функций органами местного самоуправления | B54: 1 | C54: 13 | D54: 24500 | E54: 500 | F54: 563.6
A55: Обеспечение деятельности подведомственных учреждений | B55: 1 | C55: 13 | D55: 29900 | E55: 0 | F55: 14524.5
A56: Выполнение функций казенными учреждениями | B56: 1 | C56: 13 | D56: 29900 | E56: 001 | F56: 13624.5
A57: Субсидии бюджетным учреждениям на финансовое обеспечение муниципального задания на оказание муниципальных услуг (выполнение работ) | B57: 1 | C57: 13 | D57: 29900 | E57: 611 | F57: 900
A58: Реализация государственных функций, связанных с общегосударственным управлением | B58: 1 | C58: 13 | D58: 920000 | E58: 0 | F58: 1353.5
A59: Выполнение других обязательств государства | B59: 1 | C59: 13 | D59: 920300 | E59: 0 | F59: 1353.5
A60: Выполнение функций органами местного самоуправления | B60: 1 | C60: 13 | D60: 920300 | E60: 500 | F60: 1353.5
A61: Учреждения по обеспечению хозяйственного обслуживания | B61: 1 | C61: 13 | D61: 930000 | E61: 0 | F61: 6500
A62: Субсидии бюджетным учреждениям на финансовое обеспечение муниципального задания на оказание муниципальных услуг (выполнение работ) | B62: 1 | C62: 13 | D62: 930000 | E62: 611 | F62: 6500
A63: Целевые программы муниципальных образований | B63: 1 | C63: 13 | D63: 7950000 | E63: 0 | F63: 655
A64: Долгосрочная целевая программа "Улучшение условий и охраны труда в Черемховском районе на 2011-2013гг." | B64: 1 | C64: 13 | D64: 7951400 | E64: 0 | F64: 15
A65: Выполнение функций органами местного самоуправления | B65: 1 | C65: 13 | D65: 7951400 | E65: 500 | F65: 15
A66: Долгосрочная целевая программа "Инвентаризация муниципальных объектов недвижимости Черемховского районного муниципального образования на 2012-2014 годы" | B66: 1 | C66: 13 | D66: 7951900 | E66: 0 | F66: 500
A67: Выполнение функций органами местного самоуправления | B67: 1 | C67: 13 | D67: 7951900 | E67: 500 | F67: 500
A68: Комплексная программа "Профилактика правонарушений в Черемховском районном муниципальном образовании на 2013-2016 годы" | B68: 1 | C68: 13 | D68: 7952600 | E68: 0 | F68: 40
A69: Выполнение функций органами местного самоуправления | B69: 1 | C69: 13 | D69: 7952600 | E69: 500 | F69: 40
A70: Долгосрочная целевая программа "Поддержка молодых педагогов на территории Черемховского районного муниципального образования" на 2012-2013 годы | B70: 1 | C70: 13 | D70: 7952700 | E70: 0 | F70: 100
A71: Выполнение функций органами местного самоуправления | B71: 1 | C71: 13 | D71: 7952700 | E71: 500 | F71: 100
A72: НАЦИОНАЛЬНАЯ ЭКОНОМИКА | B72: 4 | C72: 0 | D72: 0 | E72: 0 | F72: 5130.3
A73: Дорожное хозяйство(дорожные фонды) | B73: 4 | C73: 9 | D73: 0 | E73: 0 | F73: 4500.1
A74: Региональные целевые программы | B74: 4 | C74: 9 | D74: 5220000 | E74: 0 | F74: 3829
A75: Долгосрочная целевая программа "Развитие автомобильных дорог общего пользования регионального или межмуниципального значения и местного значения в Иркутской области на 2011 - 2014 годы" | B75: 4 | C75: 9 | D75: 5224700 | E75: 0 | F75: 3829
A76: Выполнение функций органами местного самоуправления | B76: 4 | C76: 9 | D76: 5224700 | E76: 500 | F76: 3829
A77: Целевые программы муниципальных образований | B77: 4 | C77: 9 | D77: 7950000 | E77: 0 | F77: 671.1
A78: Долгосрочная целевая программа "Инвентаризация муниципальных объектов недвижимости Черемховского районного муниципального образования на 2012-2014 годы" | B78: 4 | C78: 9 | D78: 7951900 | E78: 0 | F78: 468.6
A79: Выполнение функций органами местного самоуправления | B79: 4 | C79: 9 | D79: 7951900 | E79: 500 | F79: 468.6
A80: Долгосрочная целевая программа "Развитие автомобильных дорог Черемховского районного муниципального образования на 2013-2015 годы" | B80: 4 | C80: 9 | D80: 7952300 | E80: 0 | F80: 202.5
A81: Выполнение функций органами местного самоуправления | B81: 4 | C81: 9 | D81: 7952300 | E81: 500 | F81: 202.5
A82: Другие вопросы в области национальной экономики | B82: 4 | C82: 12 | D82: 0 | E82: 0 | F82: 630.2
A83: Мероприятия в области строительства, архитектуры и градостроительства | B83: 4 | C83: 12 | D83: 3380000 | E83: 0 | F83: 30.2
A84: Подготовка проектов правил землепользования и застройки муниципальных образований Черемховского районного муниципального образования | B84: 4 | C84: 12 | D84: 3380200 | E84: 0 | F84: 30.2
A85: Выполнение функций органами местного самоуправления | B85: 4 | C85: 12 | D85: 3380200 | E85: 500 | F85: 30.2
A86: Целевые программы муниципальных образований | B86: 4 | C86: 12 | D86: 7950000 | E86: 0 | F86: 600
A87: Долгосрочная целевая программа "Инвентаризация муниципальных объектов недвижимости Черемховского районного муниципального образования на 2012-2014 годы" | B87: 4 | C87: 12 | D87: 7951900 | E87: 0 | F87: 500
A88: Выполнение функций органами местного самоуправления | B88: 4 | C88: 12 | D88: 7951900 | E88: 500 | F88: 500
A89: Долгосрочная целевая программа "Поддержка и развитие малого и среднего предпринимательства в Черемховском районе" на 2013-2014 годы | B89: 4 | C89: 12 | D89: 7952200 | E89: 0 | F89: 100
A90: Выполнение функций органами местного самоуправления | B90: 4 | C90: 12 | D90: 7952200 | E90: 500 | F90: 100
A91: ЖИЛИЩНО-КОММУНАЛЬНОЕ ХОЗЯЙСТВО | B91: 5 | C91: 0 | D91: 0 | E91: 0 | F91: 6689.8
A92: Жилищное хозяйство | B92: 5 | C92: 1 | D92: 0 | E92: 0 | F92: 1383.8
A93: Поддержка жилищного хозяйства | B93: 5 | C93: 1 | D93: 3500000 | E93: 0 | F93: 1383.8
A94: Мероприятия в области жилищного хозяйства | B94: 5 | C94: 1 | D94: 3500300 | E94: 0 | F94: 1383.8
A95: Выполнение функций органами местного самоуправления | B95: 5 | C95: 1 | D95: 3500300 | E95: 500 | F95: 1383.8
A96: Другие вопросы в области жилищно-коммунального хозяйства | B96: 5 | C96: 5 | D96: 0 | E96: 0 | F96: 5306
A97: Руководство и управление в сфере установленных функций органов государственной власти субъектов Российской Федерации и органов местного самоуправления | B97: 5 | C97: 5 | D97: 20000 | E97: 0 | F97: 5306
A98: Центральный аппарат | B98: 5 | C98: 5 | D98: 20400 | E98: 0 | F98: 5306
A99: Выполнение функций органами местного самоуправления | B99: 5 | C99: 5 | D99: 20400 | E99: 500 | F99: 5306
A100: ОБРАЗОВАНИЕ | B100: 7 | C100: 0 | D100: 0 | E100: 0 | F100: 374534.4
A101: Дошкольное образование | B101: 7 | C101: 1 | D101: 0 | E101: 0 | F101: 73491.6
A102: Детские дошкольные учреждения | B102: 7 | C102: 1 | D102: 4200000 | E102: 0 | F102: 64964.1
A103: Обеспечение деятельности подведомственных учреждений | B103: 7 | C103: 1 | D103: 4209900 | E103: 0 | F103: 64964.1
A104: Выполнение функций казенными учреждениями | B104: 7 | C104: 1 | D104: 4209900 | E104: 001 | F104: 64964.1
A105: Региональные целевые программы | B105: 7 | C105: 1 | D105: 5220000 | E105: 0 | F105: 3027.5
A106: Областная государственная целевая программа поддержки и развития учреждений дошкольного образования в Иркутской области на 2009-2014 годы | B106: 7 | C106: 1 | D106: 5223700 | E106: 0 | F106: 3027.5
A107: Выполнение функций казенными учреждениями | B107: 7 | C107: 1 | D107: 5223700 | E107: 001 | F107: 3027.5
A108: Выплата заработной платы с начислениями на нее педагогическим работникам муниципальных дошкольных образовательных учреждений и муниципальных учреждений дополнительного образования | B108: 7 | C108: 1 | D108: 5890000 | E108: 0 | F108: 1465
A109: Выполнение функций казенными учреждениями | B109: 7 | C109: 1 | D109: 5890000 | E109: 001 | F109: 1465
A110: Целевые программы муниципальных образований | B110: 7 | C110: 1 | D110: 7950000 | E110: 0 | F110: 4035
A111: Долгосрочная целевая программа Черемховского районного муниципального образования "Повышение эффективности бюджетных расходов Черемховского районного муниципального образования на 2012-2013 годы" | B111: 7 | C111: 1 | D111: 7950200 | E111: 0 | F111: 2011
A112: Выполнение функций казенными учреждениями | B112: 7 | C112: 1 | D112: 7950200 | E112: 001 | F112: 2011
A113: Долгосрочная целевая программа "Безопасность образовательных учреждений на 2010-2014 гг." | B113: 7 | C113: 1 | D113: 7951000 | E113: 0 | F113: 572
A114: Мероприятия по обеспечению пожарной безопасности | B114: 7 | C114: 1 | D114: 7951000 | E114: 450 | F114: 572
A115: Долгосрочная целевая программа энергосбережения и повышения энергетической эффективности Черемховского районного муниципального образования на 2010-2015 годы | B115: 7 | C115: 1 | D115: 7951100 | E115: 0 | F115: 0
A116: Мероприятия по повышению энергетической эффективности | B116: 7 | C116: 1 | D116: 7951100 | E116: 451 | F116: 0
A117: Долгосрочная целевая программа "Развитие дошкольного образования на 2011-2014 гг." | B117: 7 | C117: 1 | D117: 7951700 | E117: 0 | F117: 1102
A118: Мероприятия в сфере образования | B118: 7 | C118: 1 | D118: 7951700 | E118: 022 | F118: 1102
A119: Долгосрочная целевая программа "Совершенствование дошкольного образования Черемховского района на 2011-2014 гг." | B119: 7 | C119: 1 | D119: 7951800 | E119: 0 | F119: 350
A120: Мероприятия в сфере образования | B120: 7 | C120: 1 | D120: 7951800 | E120: 022 | F120: 350
A121: Общее образование | B121: 7 | C121: 2 | D121: 0 | E121: 0 | F121: 292981
A122: Руководство и управление в сфере установленных функций органов государственной власти субъектов Российской Федерации и органов местного самоуправления | B122: 7 | C122: 2 | D122: 20000 | E122: 0 | F122: 238581.8
A123: Обеспечение государственных гарантий прав граждан на получение общедоступного и бесплатного дошкольного, начального общего, основного общего, среднего (полного) общего образования, а также дополнительного образования в общеобразовательных учреждениях | B123: 7 | C123: 2 | D123: 25000 | E123: 0 | F123: 238581.8
A124: Выполнение функций казенными учреждениями | B124: 7 | C124: 2 | D124: 25000 | E124: 001 | F124: 238581.8
A125: Школы - детские сады, школы начальные, неполные средние и средние | B125: 7 | C125: 2 | D125: 4210000 | E125: 0 | F125: 18815
A126: Обеспечение деятельности подведомственных учреждений | B126: 7 | C126: 2 | D126: 4219900 | E126: 0 | F126: 18815
A127: Выполнение функций казенными учреждениями | B127: 7 | C127: 2 | D127: 4219900 | E127: 001 | F127: 18815
A128: Учреждения по внешкольной работе с детьми | B128: 7 | C128: 2 | D128: 4230000 | E128: 0 | F128: 25853.4
A129: Обеспечение деятельности подведомственных учреждений | B129: 7 | C129: 2 | D129: 4239900 | E129: 0 | F129: 25853.4
A130: Выполнение функций казенными учреждениями | B130: 7 | C130: 2 | D130: 4239900 | E130: 001 | F130: 25853.4
A131: Выплата заработной платы с начислениями на нее педагогическим работникам муниципальных дошкольных образовательных учреждений и муниципальных учреждений дополнительного образования | B131: 7 | C131: 2 | D131: 5890000 | E131: 0 | F131: 540.1
A132: Выполнение функций казенными учреждениями | B132: 7 | C132: 2 | D132: 5890000 | E132: 001 | F132: 540.1
A133: Целевые программы муниципальных образований | B133: 7 | C133: 2 | D133: 7950000 | E133: 0 | F133: 9190.7
A134: Долгосрочная целевая программа Черемховского районного муниципального образования "Повышение эффективности бюджетных расходов Черемховского районного муниципального образования на 2012-2013 годы" | B134: 7 | C134: 2 | D134: 7950200 | E134: 0 | F134: 5469.9
A135: Выполнение функций казенными учреждениями | B135: 7 | C135: 2 | D135: 7950200 | E135: 001 | F135: 5469.9
A136: Долгосрочная целевая программа "Безопасность образовательных учреждений на 2010-2014 гг." | B136: 7 | C136: 2 | D136: 7951000 | E136: 0 | F136: 1128
A137: Мероприятия по обеспечению пожарной безопасности | B137: 7 | C137: 2 | D137: 7951000 | E137: 450 | F137: 1128
A138: Долгосрочная целевая программа энергосбережения и повышения энергетической эффективности Черемховского районного муниципального образования на 2010-2015 годы | B138: 7 | C138: 2 | D138: 7951100 | E138: 0 | F138: 600
A139: Мероприятия по повышению энергетической эффективности | B139: 7 | C139: 2 | D139: 7951100 | E139: 451 | F139: 600
A140: Долгосрочная целевая программа "Ветхие школы Черемховского района" на 2011-2013 гг. | B140: 7 | C140: 2 | D140: 7951500 | E140: 0 | F140: 900
A141: Мероприятия в сфере образования | B141: 7 | C141: 2 | D141: 7951500 | E141: 022 | F141: 900
A142: Долгосрочная целевая программа "Совершенствование организации питания в образовательных учреждениях Черемховского района на 2011-2013гг." | B142: 7 | C142: 2 | D142: 7951600 | E142: 0 | F142: 1000
A143: Мероприятия в сфере образования | B143: 7 | C143: 2 | D143: 7951600 | E143: 022 | F143: 1000
A144: Долгосрочная целевая программа "Развитие культуры в Черемховском районном муниципальном образовании на период 2012-2016 гг." | B144: 7 | C144: 2 | D144: 7952000 | E144: 0 | F144: 92.8
A145: Мероприятия по поддержке и развитию культуры, искусства, кинематографии | B145: 7 | C145: 2 | D145: 7952000 | E145: 023 | F145: 92.8
A146: Профессиональная подготовка, переподготовка и повышение квалификации | B146: 7 | C146: 5 | D146: 0 | E146: 0 | F146: 205.5
A147: Мероприятия по переподготовке и повышению квалификации | B147: 7 | C147: 5 | D147: 4340000 | E147: 0 | F147: 205.5
A148: Выполнение функций казенными учреждениями | B148: 7 | C148: 5 | D148: 4340000 | E148: 001 | F148: 108.1
A149: Выполнение функций органами местного самоуправления | B149: 7 | C149: 5 | D149: 4340000 | E149: 500 | F149: 97.4
A150: Молодежная политика и оздоровление детей | B150: 7 | C150: 7 | D150: 0 | E150: 0 | F150: 222
A151: Организационно-воспитательная работа с молодежью | B151: 7 | C151: 7 | D151: 4310000 | E151: 0 | F151: 46
A152: Проведение мероприятий для детей и молодежи | B152: 7 | C152: 7 | D152: 4310100 | E152: 0 | F152: 46
A153: Проведение мероприятия для детей и молодежи | B153: 7 | C153: 7 | D153: 4310100 | E153: 447 | F153: 46
A154: Мероприятия по проведению оздоровительной кампании детей | B154: 7 | C154: 7 | D154: 4320000 | E154: 0 | F154: 126
A155: Оплата стоимости набора продуктов питания для детей в организованных органами местного самоуправления оздоровительных лагерях с дневным пребыванием детей за счет средств областного бюджета | B155: 7 | C155: 7 | D155: 4320300 | E155: 0 | F155: 126
A156: Оплата стоимости набора продуктов питания для детей в организованных органами местного самоуправления оздоровительных лагерях с дневным пребыванием детей за счет средств местного бюджета | B156: 7 | C156: 7 | D156: 4320302 | E156: 0 | F156: 126
A157: Выполнение функций казенными учреждениями | B157: 7 | C157: 7 | D157: 4320302 | E157: 001 | F157: 126
A158: Целевые программы муниципальных образований | B158: 7 | C158: 7 | D158: 7950000 | E158: 0 | F158: 50
A159: Долгосрочная целевая программа "Комплексные меры профилактики злоупотребления наркотическими средствами и психотропными веществами в Черемховском районном муниципальном образовании на 2011-2013 гг." | B159: 7 | C159: 7 | D159: 7951300 | E159: 0 | F159: 10
A160: Выполнение функций органами местного самоуправления | B160: 7 | C160: 7 | D160: 7951300 | E160: 500 | F160: 10
A161: Долгосрочная целевая программа "Молодежная политика в Черемховском районном муниципальном образовании" на 2013-2015 гг. | B161: 7 | C161: 7 | D161: 7952500 | E161: 0 | F161: 40
A162: Проведение мероприятия для детей и молодежи | B162: 7 | C162: 7 | D162: 7952500 | E162: 447 | F162: 40
A163: Другие вопросы в области образования | B163: 7 | C163: 9 | D163: 0 | E163: 0 | F163: 7634.3
A164: Руководство и управление в сфере установленных функций органов государственной власти субъектов Российской Федерации и органов местного самоуправления | B164: 7 | C164: 9 | D164: 20000 | E164: 0 | F164: 2634.3
A165: Центральный аппарат | B165: 7 | C165: 9 | D165: 20400 | E165: 0 | F165: 2634.3
A166: Выполнение функций органами местного самоуправления | B166: 7 | C166: 9 | D166: 20400 | E166: 500 | F166: 2634.3
A167: Учебно-методические кабинеты, централизованные бухгалтерии, группы хозяйственного обслуживания, учебные фильмотеки, межшкольные учебно-производственные комбинаты, логопедические пункты | B167: 7 | C167: 9 | D167: 4520000 | E167: 0 | F167: 5000
A168: Субсидии бюджетным учреждениям на финансовое обеспечение муниципального задания на оказание муниципальных услуг (выполнение работ) | B168: 7 | C168: 9 | D168: 4520000 | E168: 611 | F168: 5000
A169: КУЛЬТУРА И КИНЕМАТОГРАФИЯ | B169: 8 | C169: 0 | D169: 0 | E169: 0 | F169: 16604.7
A170: Культура | B170: 8 | C170: 1 | D170: 0 | E170: 0 | F170: 15413
A171: Учреждения культуры и мероприятия в сфере культуры и кинематографии | B171: 8 | C171: 1 | D171: 4400000 | E171: 0 | F171: 5431.2
A172: Комплектование книжных фондов библиотек муниципальных образований и государственных библиотек городов Москвы и Санкт-Петербурга | B172: 8 | C172: 1 | D172: 4400200 | E172: 0 | F172: 466.3
A173: Комплектование книжных фондов библиотек муниципальных образований и государственных библиотек городов Москвы и Санкт-Петербурга за счет средств федерального бюджета | B173: 8 | C173: 1 | D173: 4400201 | E173: 0 | F173: 303.6
A174: Выполнение функций казенными учреждениями | B174: 8 | C174: 1 | D174: 4400201 | E174: 001 | F174: 303.6
A175: Комплектование книжных фондов библиотек муниципальных образований и государственных библиотек городов Москвы и Санкт-Петербурга за счет областного бюджета | B175: 8 | C175: 1 | D175: 4400202 | E175: 0 | F175: 162.7
A176: Выполнение функций казенными учреждениями | B176: 8 | C176: 1 | D176: 4400202 | E176: 001 | F176: 162.7
A177: Обеспечение деятельности подведомственных учреждений | B177: 8 | C177: 1 | D177: 4409900 | E177: 0 | F177: 4964.9
A178: Выполнение функций казенными учреждениями | B178: 8 | C178: 1 | D178: 4409900 | E178: 001 | F178: 4964.9
A179: Музеи и постоянные выставки | B179: 8 | C179: 1 | D179: 4410000 | E179: 0 | F179: 1130.4
A180: Обеспечение деятельности подведомственных учреждений | B180: 8 | C180: 1 | D180: 4419900 | E180: 0 | F180: 1130.4
A181: Выполнение функций казенными учреждениями | B181: 8 | C181: 1 | D181: 4419900 | E181: 001 | F181: 1130.4
A182: Библиотеки | B182: 8 | C182: 1 | D182: 4420000 | E182: 0 | F182: 7330.4
A183: Обеспечение деятельности подведомственных учреждений | B183: 8 | C183: 1 | D183: 4429900 | E183: 0 | F183: 7330.4
A184: Выполнение функций казенными учреждениями | B184: 8 | C184: 1 | D184: 4429900 | E184: 001 | F184: 7330.4
A185: Целевые программы муниципальных образований | B185: 8 | C185: 1 | D185: 7950000 | E185: 0 | F185: 1521
A186: Долгосрочная целевая программа Черемховского районного муниципального образования "Повышение эффективности бюджетных расходов Черемховского районного муниципального образования на 2012-2013 годы" | B186: 8 | C186: 1 | D186: 7950200 | E186: 0 | F186: 308
A187: Выполнение функций казенными учреждениями | B187: 8 | C187: 1 | D187: 7950200 | E187: 001 | F187: 308
A188: Долгосрочная целевая программа энергосбережения и повышения энергетической эффективности Черемховского районного муниципального образования на 2010-2015 годы | B188: 8 | C188: 1 | D188: 7951100 | E188: 0 | F188: 282
A189: Мероприятия по повышению энергетической эффективности | B189: 8 | C189: 1 | D189: 7951100 | E189: 451 | F189: 282
A190: Долгосрочная целевая программа "Развитие культуры в Черемховском районном муниципальном образовании на период 2012-2016 гг." | B190: 8 | C190: 1 | D190: 7952000 | E190: 0 | F190: 931
A191: Мероприятия по поддержке и развитию культуры, искусства, кинематографии | B191: 8 | C191: 1 | D191: 7952000 | E191: 023 | F191: 931
A192: Другие вопросы в области культуры, кинематографии | B192: 8 | C192: 4 | D192: 0 | E192: 0 | F192: 1191.7
A193: Руководство и управление в сфере установленных функций органов государственной власти субъектов Российской Федерации и органов местного самоуправления | B193: 8 | C193: 4 | D193: 20000 | E193: 0 | F193: 1191.7
A194: Центральный аппарат | B194: 8 | C194: 4 | D194: 20400 | E194: 0 | F194: 1191.7
A195: Выполнение функций органами местного самоуправления | B195: 8 | C195: 4 | D195: 20400 | E195: 500 | F195: 1191.7
A196: Социальная политика | B196: 10 | C196: 0 | D196: 0 | E196: 0 | F196: 19800.6
A197: Пенсионное обеспечение | B197: 10 | C197: 1 | D197: 0 | E197: 0 | F197: 2980
A198: Доплаты к пенсиям, дополнительное пенсионное обеспечение | B198: 10 | C198: 1 | D198: 4910000 | E198: 0 | F198: 2980
A199: Доплаты к пенсиям государственных служащих субъектов Российской Федерации и муниципальных служащих | B199: 10 | C199: 1 | D199: 4910100 | E199: 0 | F199: 2980
A200: Социальные выплаты | B200: 10 | C200: 1 | D200: 4910100 | E200: 005 | F200: 2980
A201: Социальное обеспечение населения | B201: 10 | C201: 3 | D201: 0 | E201: 0 | F201: 15114.5
A202: Руководство и управление в сфере установленных функций органов государственной власти субъектов Российской Федерации и органов местного самоуправления | B202: 10 | C202: 3 | D202: 20000 | E202: 0 | F202: 13896
A203: Осуществление отдельных областных государственных полномочий по предоставлению мер социальной поддержки многодетным и малоимущим семьям | B203: 10 | C203: 3 | D203: 24600 | E203: 0 | F203: 6361.8
A204: Социальные выплаты | B204: 10 | C204: 3 | D204: 24600 | E204: 005 | F204: 6361.8
A205: Осуществление областных государственных полномочий по предоставлению гражданам субсидий на оплату жилых помещений и коммунальных услуг | B205: 10 | C205: 3 | D205: 24700 | E205: 0 | F205: 7534.2
A206: Содержание и обеспечение деятельности муниципальных служащих, осуществляющих областные государственные полномочия по предоставлению гражданам субсидий на оплату жилых помещений и коммунальных услуг | B206: 10 | C206: 3 | D206: 24701 | E206: 0 | F206: 771.9
A207: Выполнение функций органами местного самоуправления | B207: 10 | C207: 3 | D207: 24701 | E207: 500 | F207: 771.9
A208: Предоставление гражданам субсидий на оплату жилых помещений и коммунальных услуг | B208: 10 | C208: 3 | D208: 24702 | E208: 0 | F208: 6762.3
A209: Социальные выплаты | B209: 10 | C209: 3 | D209: 24702 | E209: 005 | F209: 6762.3
A210: Реализация государственных функций в области социальной политики | B210: 10 | C210: 3 | D210: 5140000 | E210: 0 | F210: 854
... 48 more rows

Sheet прил8
A9: Распределение бюджетных ассигнований по разделам и подразделам классификации расходов бюджетов Черемховского районного муниципального образования на 2013 год
A12: Наименование показателя | B12: раздел | C12: подраздел | F12: Сумма, тыс. руб.
D13: целевой статьи | E13: вида расходов
A14: 1 | B14: 2 | C14: 3 | D14: 4 | E14: 5 | F14: 4
A15: ОБЩЕГОСУДАРСТВЕННЫЕ ВОПРОСЫ | B15: 1 | C15: 0 | D15: 0 | E15: 0 | F15: 69294.8
A16: Функционирование высшего должностного лица субъекта Российской Федерации и муниципального образования | B16: 1 | C16: 2 | D16: 0 | E16: 0 | F16: 2412
A17: Руководство и управление в сфере установленных функций органов государственной власти субъектов Российской Федерации и органов местного самоуправления | B17: 1 | C17: 2 | D17: 20000 | E17: 0 | F17: 2412
A18: Глава муниципального образования | B18: 1 | C18: 2 | D18: 20300 | E18: 0 | F18: 2412
A19: Выполнение функций органами местного самоуправления | B19: 1 | C19: 2 | D19: 20300 | E19: 500 | F19: 2412
A20: Функционирование законодательных (представительных) органов государственной власти и представительных органов муниципальных образований | B20: 1 | C20: 3 | D20: 0 | E20: 0 | F20: 1206.1
A21: Руководство и управление в сфере установленных функций органов государственной власти субъектов Российской Федерации и органов местного самоуправления | B21: 1 | C21: 3 | D21: 20000 | E21: 0 | F21: 1206.1
A22: Центральный аппарат | B22: 1 | C22: 3 | D22: 20400 | E22: 0 | F22: 372.1
A23: Выполнение функций органами местного самоуправления | B23: 1 | C23: 3 | D23: 20400 | E23: 500 | F23: 372.1
A24: Председатель представительного органа муниципального образования | B24: 1 | C24: 3 | D24: 21100 | E24: 0 | F24: 834
A25: Выполнение функций органами местного самоуправления | B25: 1 | C25: 3 | D25: 21100 | E25: 500 | F25: 834
A26: Функционирование Правительства Российской Федерации, высших исполнительных органов государственной власти субъектов Российской Федерации, местных администраций | B26: 1 | C26: 4 | D26: 0 | E26: 0 | F26: 25663.4
A27: Руководство и управление в сфере установленных функций органов государственной власти субъектов Российской Федерации и органов местного самоуправления | B27: 1 | C27: 4 | D27: 20000 | E27: 0 | F27: 25663.4
A28: Центральный аппарат | B28: 1 | C28: 4 | D28: 20400 | E28: 0 | F28: 25663.4
A29: Выполнение функций органами местного самоуправления | B29: 1 | C29: 4 | D29: 20400 | E29: 500 | F29: 25663.4
A30: Обеспечение деятельности финансовых, налоговых и таможенных органов и органов финансового (финансово-бюджетного) надзора | B30: 1 | C30: 6 | D30: 0 | E30: 0 | F30: 11159.1
A31: Руководство и управление в сфере установленных функций органов государственной власти субъектов Российской Федерации и органов местного самоуправления | B31: 1 | C31: 6 | D31: 20000 | E31: 0 | F31: 10959.1
A32: Центральный аппарат | B32: 1 | C32: 6 | D32: 20400 | E32: 0 | F32: 9876.7
A33: Выполнение функций органами местного самоуправления | B33: 1 | C33: 6 | D33: 20400 | E33: 500 | F33: 9876.7
A34: Руководитель контрольно-счетной палаты муниципального образования и его заместители | B34: 1 | C34: 6 | D34: 22500 | E34: 0 | F34: 1082.4
A35: Выполнение функций органами местного самоуправления | B35: 1 | C35: 6 | D35: 22500 | E35: 500 | F35: 1082.4
A36: Целевые программы муниципальных образований | B36: 1 | C36: 6 | D36: 7950000 | E36: 0 | F36: 200
A37: Долгосрочная целевая программа Черемховского районного муниципального образования "Повышение эффективности бюджетных расходов Черемховского районного муниципального образования на 2012-2013 годы" | B37: 1 | C37: 6 | D37: 7950200 | E37: 0 | F37: 200
A38: Выполнение функций органами местного самоуправления | B38: 1 | C38: 6 | D38: 7950200 | E38: 500 | F38: 200
A39: Резервные фонды | B39: 1 | C39: 11 | D39: 0 | E39: 0 | F39: 300
A40: Резервные фонды | B40: 1 | C40: 11 | D40: 700000 | E40: 0 | F40: 300
A41: Резервные фонды местных администраций | B41: 1 | C41: 11 | D41: 700500 | E41: 0 | F41: 300
A42: Выполнение функций органами местного самоуправления | B42: 1 | C42: 11 | D42: 700500 | E42: 500 | F42: 300
A43: Другие общегосударственные вопросы | B43: 1 | C43: 13 | D43: 0 | E43: 0 | F43: 28554.2
A44: Руководство и управление в сфере установленных функций органов государственной власти субъектов Российской Федерации и органов местного самоуправления | B44: 1 | C44: 13 | D44: 20000 | E44: 0 | F44: 20045.7
A45: Центральный аппарат | B45: 1 | C45: 13 | D45: 20400 | E45: 0 | F45: 2932.3
A46: Выполнение функций органами местного самоуправления | B46: 1 | C46: 13 | D46: 20400 | E46: 500 | F46: 2932.3
A47: Осуществление областных государственных полномочий по хранению, комплектованию, учету и использованию архивных документов, относящихся к государственной собственности Иркутской области | B47: 1 | C47: 13 | D47: 24000 | E47: 0 | F47: 1086
A48: Выполнение функций органами местного самоуправления | B48: 1 | C48: 13 | D48: 24000 | E48: 500 | F48: 1086
A49: Осуществление областных государственных полномочий по определению персонального состава и обеспечению деятельности административных комиссий | B49: 1 | C49: 13 | D49: 24300 | E49: 0 | F49: 563.6
A50: Выполнение функций органами местного самоуправления | B50: 1 | C50: 13 | D50: 24300 | E50: 500 | F50: 563.6
A51: Осуществление отдельных государственных полномочий в области производства и оборота этилового спирта, алкогольной и спиртосодержащей продукции | B51: 1 | C51: 13 | D51: 24400 | E51: 0 | F51: 375.7
A52: Выполнение функций органами местного самоуправления | B52: 1 | C52: 13 | D52: 24400 | E52: 500 | F52: 375.7
A53: Осуществление отдельных областных государственных полномочий в области охраны труда | B53: 1 | C53: 13 | D53: 24500 | E53: 0 | F53: 563.6
A54: Выполнение функций органами местного самоуправления | B54: 1 | C54: 13 | D54: 24500 | E54: 500 | F54: 563.6
A55: Обеспечение деятельности подведомственных учреждений | B55: 1 | C55: 13 | D55: 29900 | E55: 0 | F55: 14524.5
A56: Выполнение функций казенными учреждениями | B56: 1 | C56: 13 | D56: 29900 | E56: 001 | F56: 13624.5
A57: Субсидии бюджетным учреждениям на финансовое обеспечение муниципального задания на оказание муниципальных услуг (выполнение работ) | B57: 1 | C57: 13 | D57: 29900 | E57: 611 | F57: 900
A58: Реализация государственных функций, связанных с общегосударственным управлением | B58: 1 | C58: 13 | D58: 920000 | E58: 0 | F58: 1353.5
A59: Выполнение других обязательств государства | B59: 1 | C59: 13 | D59: 920300 | E59: 0 | F59: 1353.5
A60: Выполнение функций органами местного самоуправления | B60: 1 | C60: 13 | D60: 920300 | E60: 500 | F60: 1353.5
A61: Учреждения по обеспечению хозяйственного обслуживания | B61: 1 | C61: 13 | D61: 930000 | E61: 0 | F61: 6500
A62: Субсидии бюджетным учреждениям на финансовое обеспечение муниципального задания на оказание муниципальных услуг (выполнение работ) | B62: 1 | C62: 13 | D62: 930000 | E62: 611 | F62: 6500
A63: Целевые программы муниципальных образований | B63: 1 | C63: 13 | D63: 7950000 | E63: 0 | F63: 655
A64: Долгосрочная целевая программа "Улучшение условий и охраны труда в Черемховском районе на 2011-2013гг." | B64: 1 | C64: 13 | D64: 7951400 | E64: 0 | F64: 15
A65: Выполнение функций органами местного самоуправления | B65: 1 | C65: 13 | D65: 7951400 | E65: 500 | F65: 15
A66: Долгосрочная целевая программа "Инвентаризация муниципальных объектов недвижимости Черемховского районного муниципального образования на 2012-2014 годы" | B66: 1 | C66: 13 | D66: 7951900 | E66: 0 | F66: 500
A67: Выполнение функций органами местного самоуправления | B67: 1 | C67: 13 | D67: 7951900 | E67: 500 | F67: 500
A68: Комплексная программа "Профилактика правонарушений в Черемховском районном муниципальном образовании на 2013-2016 годы" | B68: 1 | C68: 13 | D68: 7952600 | E68: 0 | F68: 40
A69: Выполнение функций органами местного самоуправления | B69: 1 | C69: 13 | D69: 7952600 | E69: 500 | F69: 40
A70: Долгосрочная целевая программа "Поддержка молодых педагогов на территории Черемховского районного муниципального образования" на 2012-2013 годы | B70: 1 | C70: 13 | D70: 7952700 | E70: 0 | F70: 100
A71: Выполнение функций органами местного самоуправления | B71: 1 | C71: 13 | D71: 7952700 | E71: 500 | F71: 100
A72: НАЦИОНАЛЬНАЯ ЭКОНОМИКА | B72: 4 | C72: 0 | D72: 0 | E72: 0 | F72: 5130.3
A73: Дорожное хозяйство(дорожные фонды) | B73: 4 | C73: 9 | D73: 0 | E73: 0 | F73: 4500.1
A74: Региональные целевые программы | B74: 4 | C74: 9 | D74: 5220000 | E74: 0 | F74: 3829
A75: Долгосрочная целевая программа "Развитие автомобильных дорог общего пользования регионального или межмуниципального значения и местного значения в Иркутской области на 2011 - 2014 годы" | B75: 4 | C75: 9 | D75: 5224700 | E75: 0 | F75: 3829
A76: Выполнение функций органами местного самоуправления | B76: 4 | C76: 9 | D76: 5224700 | E76: 500 | F76: 3829
A77: Целевые программы муниципальных образований | B77: 4 | C77: 9 | D77: 7950000 | E77: 0 | F77: 671.1
A78: Долгосрочная целевая программа "Инвентаризация муниципальных объектов недвижимости Черемховского районного муниципального образования на 2012-2014 годы" | B78: 4 | C78: 9 | D78: 7951900 | E78: 0 | F78: 468.6
A79: Выполнение функций органами местного самоуправления | B79: 4 | C79: 9 | D79: 7951900 | E79: 500 | F79: 468.6
A80: Долгосрочная целевая программа "Развитие автомобильных дорог Черемховского районного муниципального образования на 2013-2015 годы" | B80: 4 | C80: 9 | D80: 7952300 | E80: 0 | F80: 202.5
A81: Выполнение функций органами местного самоуправления | B81: 4 | C81: 9 | D81: 7952300 | E81: 500 | F81: 202.5
A82: Другие вопросы в области национальной экономики | B82: 4 | C82: 12 | D82: 0 | E82: 0 | F82: 630.2
A83: Мероприятия в области строительства, архитектуры и градостроительства | B83: 4 | C83: 12 | D83: 3380000 | E83: 0 | F83: 30.2
A84: Подготовка проектов правил землепользования и застройки муниципальных образований Черемховского районного муниципального образования | B84: 4 | C84: 12 | D84: 3380200 | E84: 0 | F84: 30.2
A85: Выполнение функций органами местного самоуправления | B85: 4 | C85: 12 | D85: 3380200 | E85: 500 | F85: 30.2
A86: Целевые программы муниципальных образований | B86: 4 | C86: 12 | D86: 7950000 | E86: 0 | F86: 600
A87: Долгосрочная целевая программа "Инвентаризация муниципальных объектов недвижимости Черемховского районного муниципального образования на 2012-2014 годы" | B87: 4 | C87: 12 | D87: 7951900 | E87: 0 | F87: 500
A88: Выполнение функций органами местного самоуправления | B88: 4 | C88: 12 | D88: 7951900 | E88: 500 | F88: 500
A89: Долгосрочная целевая программа "Поддержка и развитие малого и среднего предпринимательства в Черемховском районе" на 2013-2014 годы | B89: 4 | C89: 12 | D89: 7952200 | E89: 0 | F89: 100
A90: Выполнение функций органами местного самоуправления | B90: 4 | C90: 12 | D90: 7952200 | E90: 500 | F90: 100
A91: ЖИЛИЩНО-КОММУНАЛЬНОЕ ХОЗЯЙСТВО | B91: 5 | C91: 0 | D91: 0 | E91: 0 | F91: 6689.8
A92: Жилищное хозяйство | B92: 5 | C92: 1 | D92: 0 | E92: 0 | F92: 1383.8
A93: Поддержка жилищного хозяйства | B93: 5 | C93: 1 | D93: 3500000 | E93: 0 | F93: 1383.8
A94: Мероприятия в области жилищного хозяйства | B94: 5 | C94: 1 | D94: 3500300 | E94: 0 | F94: 1383.8
A95: Выполнение функций органами местного самоуправления | B95: 5 | C95: 1 | D95: 3500300 | E95: 500 | F95: 1383.8
A96: Другие вопросы в области жилищно-коммунального хозяйства | B96: 5 | C96: 5 | D96: 0 | E96: 0 | F96: 5306
A97: Руководство и управление в сфере установленных функций органов государственной власти субъектов Российской Федерации и органов местного самоуправления | B97: 5 | C97: 5 | D97: 20000 | E97: 0 | F97: 5306
A98: Центральный аппарат | B98: 5 | C98: 5 | D98: 20400 | E98: 0 | F98: 5306
A99: Выполнение функций органами местного самоуправления | B99: 5 | C99: 5 | D99: 20400 | E99: 500 | F99: 5306
A100: ОБРАЗОВАНИЕ | B100: 7 | C100: 0 | D100: 0 | E100: 0 | F100: 374534.4
A101: Дошкольное образование | B101: 7 | C101: 1 | D101: 0 | E101: 0 | F101: 73491.6
A102: Детские дошкольные учреждения | B102: 7 | C102: 1 | D102: 4200000 | E102: 0 | F102: 64964.1
A103: Обеспечение деятельности подведомственных учреждений | B103: 7 | C103: 1 | D103: 4209900 | E103: 0 | F103: 64964.1
A104: Выполнение функций казенными учреждениями | B104: 7 | C104: 1 | D104: 4209900 | E104: 001 | F104: 64964.1
A105: Региональные целевые программы | B105: 7 | C105: 1 | D105: 5220000 | E105: 0 | F105: 3027.5
A106: Областная государственная целевая программа поддержки и развития учреждений дошкольного образования в Иркутской области на 2009-2014 годы | B106: 7 | C106: 1 | D106: 5223700 | E106: 0 | F106: 3027.5
A107: Выполнение функций казенными учреждениями | B107: 7 | C107: 1 | D107: 5223700 | E107: 001 | F107: 3027.5
A108: Выплата заработной платы с начислениями на нее педагогическим работникам муниципальных дошкольных образовательных учреждений и муниципальных учреждений дополнительного образования | B108: 7 | C108: 1 | D108: 5890000 | E108: 0 | F108: 1465
A109: Выполнение функций казенными учреждениями | B109: 7 | C109: 1 | D109: 5890000 | E109: 001 | F109: 1465
A110: Целевые программы муниципальных образований | B110: 7 | C110: 1 | D110: 7950000 | E110: 0 | F110: 4035
A111: Долгосрочная целевая программа Черемховского районного муниципального образования "Повышение эффективности бюджетных расходов Черемховского районного муниципального образования на 2012-2013 годы" | B111: 7 | C111: 1 | D111: 7950200 | E111: 0 | F111: 2011
A112: Выполнение функций казенными учреждениями | B112: 7 | C112: 1 | D112: 7950200 | E112: 001 | F112: 2011
A113: Долгосрочная целевая программа "Безопасность образовательных учреждений на 2010-2014 гг." | B113: 7 | C113: 1 | D113: 7951000 | E113: 0 | F113: 572
A114: Мероприятия по обеспечению пожарной безопасности | B114: 7 | C114: 1 | D114: 7951000 | E114: 450 | F114: 572
A115: Долгосрочная целевая программа энергосбережения и повышения энергетической эффективности Черемховского районного муниципального образования на 2010-2015 годы | B115: 7 | C115: 1 | D115: 7951100 | E115: 0 | F115: 0
A116: Мероприятия по повышению энергетической эффективности | B116: 7 | C116: 1 | D116: 7951100 | E116: 451 | F116: 0
A117: Долгосрочная целевая программа "Развитие дошкольного образования на 2011-2014 гг." | B117: 7 | C117: 1 | D117: 7951700 | E117: 0 | F117: 1102
A118: Мероприятия в сфере образования | B118: 7 | C118: 1 | D118: 7951700 | E118: 022 | F118: 1102
A119: Долгосрочная целевая программа "Совершенствование дошкольного образования Черемховского района на 2011-2014 гг." | B119: 7 | C119: 1 | D119: 7951800 | E119: 0 | F119: 350
A120: Мероприятия в сфере образования | B120: 7 | C120: 1 | D120: 7951800 | E120: 022 | F120: 350
A121: Общее образование | B121: 7 | C121: 2 | D121: 0 | E121: 0 | F121: 292981
A122: Руководство и управление в сфере установленных функций органов государственной власти субъектов Российской Федерации и органов местного самоуправления | B122: 7 | C122: 2 | D122: 20000 | E122: 0 | F122: 238581.8
A123: Обеспечение государственных гарантий прав граждан на получение общедоступного и бесплатного дошкольного, начального общего, основного общего, среднего (полного) общего образования, а также дополнительного образования в общеобразовательных учреждениях | B123: 7 | C123: 2 | D123: 25000 | E123: 0 | F123: 238581.8
A124: Выполнение функций казенными учреждениями | B124: 7 | C124: 2 | D124: 25000 | E124: 001 | F124: 238581.8
A125: Школы - детские сады, школы начальные, неполные средние и средние | B125: 7 | C125: 2 | D125: 4210000 | E125: 0 | F125: 18815
A126: Обеспечение деятельности подведомственных учреждений | B126: 7 | C126: 2 | D126: 4219900 | E126: 0 | F126: 18815
A127: Выполнение функций казенными учреждениями | B127: 7 | C127: 2 | D127: 4219900 | E127: 001 | F127: 18815
A128: Учреждения по внешкольной работе с детьми | B128: 7 | C128: 2 | D128: 4230000 | E128: 0 | F128: 25853.4
A129: Обеспечение деятельности подведомственных учреждений | B129: 7 | C129: 2 | D129: 4239900 | E129: 0 | F129: 25853.4
A130: Выполнение функций казенными учреждениями | B130: 7 | C130: 2 | D130: 4239900 | E130: 001 | F130: 25853.4
A131: Выплата заработной платы с начислениями на нее педагогическим работникам муниципальных дошкольных образовательных учреждений и муниципальных учреждений дополнительного образования | B131: 7 | C131: 2 | D131: 5890000 | E131: 0 | F131: 540.1
A132: Выполнение функций казенными учреждениями | B132: 7 | C132: 2 | D132: 5890000 | E132: 001 | F132: 540.1
A133: Целевые программы муниципальных образований | B133: 7 | C133: 2 | D133: 7950000 | E133: 0 | F133: 9190.7
A134: Долгосрочная целевая программа Черемховского районного муниципального образования "Повышение эффективности бюджетных расходов Черемховского районного муниципального образования на 2012-2013 годы" | B134: 7 | C134: 2 | D134: 7950200 | E134: 0 | F134: 5469.9
A135: Выполнение функций казенными учреждениями | B135: 7 | C135: 2 | D135: 7950200 | E135: 001 | F135: 5469.9
A136: Долгосрочная целевая программа "Безопасность образовательных учреждений на 2010-2014 гг." | B136: 7 | C136: 2 | D136: 7951000 | E136: 0 | F136: 1128
A137: Мероприятия по обеспечению пожарной безопасности | B137: 7 | C137: 2 | D137: 7951000 | E137: 450 | F137: 1128
A138: Долгосрочная целевая программа энергосбережения и повышения энергетической эффективности Черемховского районного муниципального образования на 2010-2015 годы | B138: 7 | C138: 2 | D138: 7951100 | E138: 0 | F138: 600
A139: Мероприятия по повышению энергетической эффективности | B139: 7 | C139: 2 | D139: 7951100 | E139: 451 | F139: 600
A140: Долгосрочная целевая программа "Ветхие школы Черемховского района" на 2011-2013 гг. | B140: 7 | C140: 2 | D140: 7951500 | E140: 0 | F140: 900
A141: Мероприятия в сфере образования | B141: 7 | C141: 2 | D141: 7951500 | E141: 022 | F141: 900
A142: Долгосрочная целевая программа "Совершенствование организации питания в образовательных учреждениях Черемховского района на 2011-2013гг." | B142: 7 | C142: 2 | D142: 7951600 | E142: 0 | F142: 1000
A143: Мероприятия в сфере образования | B143: 7 | C143: 2 | D143: 7951600 | E143: 022 | F143: 1000
A144: Долгосрочная целевая программа "Развитие культуры в Черемховском районном муниципальном образовании на период 2012-2016 гг." | B144: 7 | C144: 2 | D144: 7952000 | E144: 0 | F144: 92.8
A145: Мероприятия по поддержке и развитию культуры, искусства, кинематографии | B145: 7 | C145: 2 | D145: 7952000 | E145: 023 | F145: 92.8
A146: Профессиональная подготовка, переподготовка и повышение квалификации | B146: 7 | C146: 5 | D146: 0 | E146: 0 | F146: 205.5
A147: Мероприятия по переподготовке и повышению квалификации | B147: 7 | C147: 5 | D147: 4340000 | E147: 0 | F147: 205.5
A148: Выполнение функций казенными учреждениями | B148: 7 | C148: 5 | D148: 4340000 | E148: 001 | F148: 108.1
A149: Выполнение функций органами местного самоуправления | B149: 7 | C149: 5 | D149: 4340000 | E149: 500 | F149: 97.4
A150: Молодежная политика и оздоровление детей | B150: 7 | C150: 7 | D150: 0 | E150: 0 | F150: 222
A151: Организационно-воспитательная работа с молодежью | B151: 7 | C151: 7 | D151: 4310000 | E151: 0 | F151: 46
A152: Проведение мероприятий для детей и молодежи | B152: 7 | C152: 7 | D152: 4310100 | E152: 0 | F152: 46
A153: Проведение мероприятия для детей и молодежи | B153: 7 | C153: 7 | D153: 4310100 | E153: 447 | F153: 46
A154: Мероприятия по проведению оздоровительной кампании детей | B154: 7 | C154: 7 | D154: 4320000 | E154: 0 | F154: 126
A155: Оплата стоимости набора продуктов питания для детей в организованных органами местного самоуправления оздоровительных лагерях с дневным пребыванием детей за счет средств областного бюджета | B155: 7 | C155: 7 | D155: 4320300 | E155: 0 | F155: 126
A156: Оплата стоимости набора продуктов питания для детей в организованных органами местного самоуправления оздоровительных лагерях с дневным пребыванием детей за счет средств местного бюджета | B156: 7 | C156: 7 | D156: 4320302 | E156: 0 | F156: 126
A157: Выполнение функций казенными учреждениями | B157: 7 | C157: 7 | D157: 4320302 | E157: 001 | F157: 126
A158: Целевые программы муниципальных образований | B158: 7 | C158: 7 | D158: 7950000 | E158: 0 | F158: 50
A159: Долгосрочная целевая программа "Комплексные меры профилактики злоупотребления наркотическими средствами и психотропными веществами в Черемховском районном муниципальном образовании на 2011-2013 гг." | B159: 7 | C159: 7 | D159: 7951300 | E159: 0 | F159: 10
A160: Выполнение функций органами местного самоуправления | B160: 7 | C160: 7 | D160: 7951300 | E160: 500 | F160: 10
A161: Долгосрочная целевая программа "Молодежная политика в Черемховском районном муниципальном образовании" на 2013-2015 гг. | B161: 7 | C161: 7 | D161: 7952500 | E161: 0 | F161: 40
A162: Проведение мероприятия для детей и молодежи | B162: 7 | C162: 7 | D162: 7952500 | E162: 447 | F162: 40
A163: Другие вопросы в области образования | B163: 7 | C163: 9 | D163: 0 | E163: 0 | F163: 7634.3
A164: Руководство и управление в сфере установленных функций органов государственной власти субъектов Российской Федерации и органов местного самоуправления | B164: 7 | C164: 9 | D164: 20000 | E164: 0 | F164: 2634.3
A165: Центральный аппарат | B165: 7 | C165: 9 | D165: 20400 | E165: 0 | F165: 2634.3
A166: Выполнение функций органами местного самоуправления | B166: 7 | C166: 9 | D166: 20400 | E166: 500 | F166: 2634.3
A167: Учебно-методические кабинеты, централизованные бухгалтерии, группы хозяйственного обслуживания, учебные фильмотеки, межшкольные учебно-производственные комбинаты, логопедические пункты | B167: 7 | C167: 9 | D167: 4520000 | E167: 0 | F167: 5000
A168: Субсидии бюджетным учреждениям на финансовое обеспечение муниципального задания на оказание муниципальных услуг (выполнение работ) | B168: 7 | C168: 9 | D168: 4520000 | E168: 611 | F168: 5000
A169: КУЛЬТУРА И КИНЕМАТОГРАФИЯ | B169: 8 | C169: 0 | D169: 0 | E169: 0 | F169: 16604.7
A170: Культура | B170: 8 | C170: 1 | D170: 0 | E170: 0 | F170: 15413
A171: Учреждения культуры и мероприятия в сфере культуры и кинематографии | B171: 8 | C171: 1 | D171: 4400000 | E171: 0 | F171: 5431.2
A172: Комплектование книжных фондов библиотек муниципальных образований и государственных библиотек городов Москвы и Санкт-Петербурга | B172: 8 | C172: 1 | D172: 4400200 | E172: 0 | F172: 466.3
A173: Комплектование книжных фондов библиотек муниципальных образований и государственных библиотек городов Москвы и Санкт-Петербурга за счет средств федерального бюджета | B173: 8 | C173: 1 | D173: 4400201 | E173: 0 | F173: 303.6
A174: Выполнение функций казенными учреждениями | B174: 8 | C174: 1 | D174: 4400201 | E174: 001 | F174: 303.6
A175: Комплектование книжных фондов библиотек муниципальных образований и государственных библиотек городов Москвы и Санкт-Петербурга за счет областного бюджета | B175: 8 | C175: 1 | D175: 4400202 | E175: 0 | F175: 162.7
A176: Выполнение функций казенными учреждениями | B176: 8 | C176: 1 | D176: 4400202 | E176: 001 | F176: 162.7
A177: Обеспечение деятельности подведомственных учреждений | B177: 8 | C177: 1 | D177: 4409900 | E177: 0 | F177: 4964.9
A178: Выполнение функций казенными учреждениями | B178: 8 | C178: 1 | D178: 4409900 | E178: 001 | F178: 4964.9
A179: Музеи и постоянные выставки | B179: 8 | C179: 1 | D179: 4410000 | E179: 0 | F179: 1130.4
A180: Обеспечение деятельности подведомственных учреждений | B180: 8 | C180: 1 | D180: 4419900 | E180: 0 | F180: 1130.4
A181: Выполнение функций казенными учреждениями | B181: 8 | C181: 1 | D181: 4419900 | E181: 001 | F181: 1130.4
A182: Библиотеки | B182: 8 | C182: 1 | D182: 4420000 | E182: 0 | F182: 7330.4
A183: Обеспечение деятельности подведомственных учреждений | B183: 8 | C183: 1 | D183: 4429900 | E183: 0 | F183: 7330.4
A184: Выполнение функций казенными учреждениями | B184: 8 | C184: 1 | D184: 4429900 | E184: 001 | F184: 7330.4
A185: Целевые программы муниципальных образований | B185: 8 | C185: 1 | D185: 7950000 | E185: 0 | F185: 1521
A186: Долгосрочная целевая программа Черемховского районного муниципального образования "Повышение эффективности бюджетных расходов Черемховского районного муниципального образования на 2012-2013 годы" | B186: 8 | C186: 1 | D186: 7950200 | E186: 0 | F186: 308
A187: Выполнение функций казенными учреждениями | B187: 8 | C187: 1 | D187: 7950200 | E187: 001 | F187: 308
A188: Долгосрочная целевая программа энергосбережения и повышения энергетической эффективности Черемховского районного муниципального образования на 2010-2015 годы | B188: 8 | C188: 1 | D188: 7951100 | E188: 0 | F188: 282
A189: Мероприятия по повышению энергетической эффективности | B189: 8 | C189: 1 | D189: 7951100 | E189: 451 | F189: 282
A190: Долгосрочная целевая программа "Развитие культуры в Черемховском районном муниципальном образовании на период 2012-2016 гг." | B190: 8 | C190: 1 | D190: 7952000 | E190: 0 | F190: 931
A191: Мероприятия по поддержке и развитию культуры, искусства, кинематографии | B191: 8 | C191: 1 | D191: 7952000 | E191: 023 | F191: 931
A192: Другие вопросы в области культуры, кинематографии | B192: 8 | C192: 4 | D192: 0 | E192: 0 | F192: 1191.7
A193: Руководство и управление в сфере установленных функций органов государственной власти субъектов Российской Федерации и органов местного самоуправления | B193: 8 | C193: 4 | D193: 20000 | E193: 0 | F193: 1191.7
A194: Центральный аппарат | B194: 8 | C194: 4 | D194: 20400 | E194: 0 | F194: 1191.7
A195: Выполнение функций органами местного самоуправления | B195: 8 | C195: 4 | D195: 20400 | E195: 500 | F195: 1191.7
A196: Социальная политика | B196: 10 | C196: 0 | D196: 0 | E196: 0 | F196: 19800.6
A197: Пенсионное обеспечение | B197: 10 | C197: 1 | D197: 0 | E197: 0 | F197: 2980
A198: Доплаты к пенсиям, дополнительное пенсионное обеспечение | B198: 10 | C198: 1 | D198: 4910000 | E198: 0 | F198: 2980
A199: Доплаты к пенсиям государственных служащих субъектов Российской Федерации и муниципальных служащих | B199: 10 | C199: 1 | D199: 4910100 | E199: 0 | F199: 2980
A200: Социальные выплаты | B200: 10 | C200: 1 | D200: 4910100 | E200: 005 | F200: 2980
A201: Социальное обеспечение населения | B201: 10 | C201: 3 | D201: 0 | E201: 0 | F201: 15114.5
A202: Руководство и управление в сфере установленных функций органов государственной власти субъектов Российской Федерации и органов местного самоуправления | B202: 10 | C202: 3 | D202: 20000 | E202: 0 | F202: 13896
A203: Осуществление отдельных областных государственных полномочий по предоставлению мер социальной поддержки многодетным и малоимущим семьям | B203: 10 | C203: 3 | D203: 24600 | E203: 0 | F203: 6361.8
A204: Социальные выплаты | B204: 10 | C204: 3 | D204: 24600 | E204: 005 | F204: 6361.8
A205: Осуществление областных государственных полномочий по предоставлению гражданам субсидий на оплату жилых помещений и коммунальных услуг | B205: 10 | C205: 3 | D205: 24700 | E205: 0 | F205: 7534.2
A206: Содержание и обеспечение деятельности муниципальных служащих, осуществляющих областные государственные полномочия по предоставлению гражданам субсидий на оплату жилых помещений и коммунальных услуг | B206: 10 | C206: 3 | D206: 24701 | E206: 0 | F206: 771.9
A207: Выполнение функций органами местного самоуправления | B207: 10 | C207: 3 | D207: 24701 | E207: 500 | F207: 771.9
A208: Предоставление гражданам субсидий на оплату жилых помещений и коммунальных услуг | B208: 10 | C208: 3 | D208: 24702 | E208: 0 | F208: 6762.3
A209: Социальные выплаты | B209: 10 | C209: 3 | D209: 24702 | E209: 005 | F209: 6762.3
A210: Реализация государственных функций в области социальной политики | B210: 10 | C210: 3 | D210: 5140000 | E210: 0 | F210: 854
... 48 more rows

Sheet прил10
A10: Распределение бюджетных ассигнований по разделам, подразделам, целевым статьям и видам расходов классификации расходов бюджетов в ведомственной структуре расходов бюджета Черемховского районного муниципального образования на 2013 год
A12: Наименование показателя | B12: Код | G12: Сумма, тыс. руб.
B13: ГРБС | C13: раздела | D13: подраздела | E13: целевой статьи | F13: вида расходов
A14: 1 | B14: 2 | C14: 3 | D14: 4 | E14: 5 | F14: 6 | G14: 7
A15: Отдел по культуре и библиотечному обслуживанию АЧРМО | B15: 904 | C15: 0 | D15: 0 | E15: 0 | F15: 0 | G15: 21704.1
A16: ОБРАЗОВАНИЕ | B16: 904 | C16: 7 | D16: 0 | E16: 0 | F16: 0 | G16: 5099.4
A17: Общее образование | B17: 904 | C17: 7 | D17: 2 | E17: 0 | F17: 0 | G17: 5091.3
A18: Учреждения по внешкольной работе с детьми | B18: 904 | C18: 7 | D18: 2 | E18: 4230000 | F18: 0 | G18: 4823.5
A19: Обеспечение деятельности подведомственных учреждений | B19: 904 | C19: 7 | D19: 2 | E19: 4239900 | F19: 0 | G19: 4823.5
A20: Выполнение функций казенными учреждениями | B20: 904 | C20: 7 | D20: 2 | E20: 4239900 | F20: 001 | G20: 4823.5
A21: Целевые программы муниципальных образований | B21: 904 | C21: 7 | D21: 2 | E21: 7950000 | F21: 0 | G21: 267.8
A22: Долгосрочная целевая программа Черемховского районного муниципального образования "Повышение эффективности бюджетных расходов Черемховского районного муниципального образования на 2012-2013 годы" | B22: 904 | C22: 7 | D22: 2 | E22: 7950200 | F22: 0 | G22: 175
A23: Выполнение функций казенными учреждениями | B23: 904 | C23: 7 | D23: 2 | E23: 7950200 | F23: 001 | G23: 175
A24: Долгосрочная целевая программа "Развитие культуры в Черемховском районном муниципальном образовании на период 2012-2016 гг." | B24: 904 | C24: 7 | D24: 2 | E24: 7952000 | F24: 0 | G24: 92.8
A25: Мероприятия по поддержке и развитию культуры, искусства, кинематографии | B25: 904 | C25: 7 | D25: 2 | E25: 7952000 | F25: 023 | G25: 92.8
A26: Профессиональная подготовка, переподготовка и повышение квалификации | B26: 904 | C26: 7 | D26: 5 | E26: 0 | F26: 0 | G26: 8.1
A27: Мероприятия по переподготовке и повышению квалификации | B27: 904 | C27: 7 | D27: 5 | E27: 4340000 | F27: 0 | G27: 8.1
A28: Выполнение функций казенными учреждениями | B28: 904 | C28: 7 | D28: 5 | E28: 4340000 | F28: 001 | G28: 8.1
A29: КУЛЬТУРА И КИНЕМАТОГРАФИЯ | B29: 904 | C29: 8 | D29: 0 | E29: 0 | F29: 0 | G29: 16604.7
A30: Культура | B30: 904 | C30: 8 | D30: 1 | E30: 0 | F30: 0 | G30: 15413
A31: Учреждения культуры и мероприятия в сфере культуры и кинематографии | B31: 904 | C31: 8 | D31: 1 | E31: 4400000 | F31: 0 | G31: 5431.2
A32: Комплектование книжных фондов библиотек муниципальных образований и государственных библиотек городов Москвы и Санкт-Петербурга | B32: 904 | C32: 8 | D32: 1 | E32: 4400200 | F32: 0 | G32: 466.3
A33: Комплектование книжных фондов библиотек муниципальных образований и государственных библиотек городов Москвы и Санкт-Петербурга за счет средств федерального бюджета | B33: 904 | C33: 8 | D33: 1 | E33: 4400201 | F33: 0 | G33: 303.6
A34: Выполнение функций казенными учреждениями | B34: 904 | C34: 8 | D34: 1 | E34: 4400201 | F34: 001 | G34: 303.6
A35: Комплектование книжных фондов библиотек муниципальных образований и государственных библиотек городов Москвы и Санкт-Петербурга за счет областного бюджета | B35: 904 | C35: 8 | D35: 1 | E35: 4400202 | F35: 0 | G35: 162.7
A36: Выполнение функций казенными учреждениями | B36: 904 | C36: 8 | D36: 1 | E36: 4400202 | F36: 001 | G36: 162.7
A37: Обеспечение деятельности подведомственных учреждений | B37: 904 | C37: 8 | D37: 1 | E37: 4409900 | F37: 0 | G37: 4964.9
A38: Выполнение функций казенными учреждениями | B38: 904 | C38: 8 | D38: 1 | E38: 4409900 | F38: 001 | G38: 4964.9
A39: Музеи и постоянные выставки | B39: 904 | C39: 8 | D39: 1 | E39: 4410000 | F39: 0 | G39: 1130.4
A40: Обеспечение деятельности подведомственных учреждений | B40: 904 | C40: 8 | D40: 1 | E40: 4419900 | F40: 0 | G40: 1130.4
A41: Выполнение функций казенными учреждениями | B41: 904 | C41: 8 | D41: 1 | E41: 4419900 | F41: 001 | G41: 1130.4
A42: Библиотеки | B42: 904 | C42: 8 | D42: 1 | E42: 4420000 | F42: 0 | G42: 7330.4
A43: Обеспечение деятельности подведомственных учреждений | B43: 904 | C43: 8 | D43: 1 | E43: 4429900 | F43: 0 | G43: 7330.4
A44: Выполнение функций казенными учреждениями | B44: 904 | C44: 8 | D44: 1 | E44: 4429900 | F44: 001 | G44: 7330.4
A45: Целевые программы муниципальных образований | B45: 904 | C45: 8 | D45: 1 | E45: 7950000 | F45: 0 | G45: 1521
A46: Долгосрочная целевая программа Черемховского районного муниципального образования "Повышение эффективности бюджетных расходов Черемховского районного муниципального образования на 2012-2013 годы" | B46: 904 | C46: 8 | D46: 1 | E46: 7950200 | F46: 0 | G46: 308
A47: Выполнение функций казенными учреждениями | B47: 904 | C47: 8 | D47: 1 | E47: 7950200 | F47: 001 | G47: 308
A48: Долгосрочная целевая программа энергосбережения и повышения энергетической эффективности Черемховского районного муниципального образования на 2010-2015 годы | B48: 904 | C48: 8 | D48: 1 | E48: 7951100 | F48: 0 | G48: 282
A49: Мероприятия по повышению энергетической эффективности | B49: 904 | C49: 8 | D49: 1 | E49: 7951100 | F49: 451 | G49: 282
A50: Долгосрочная целевая программа "Развитие культуры в Черемховском районном муниципальном образовании на период 2012-2016 гг." | B50: 904 | C50: 8 | D50: 1 | E50: 7952000 | F50: 0 | G50: 931
A51: Мероприятия по поддержке и развитию культуры, искусства, кинематографии | B51: 904 | C51: 8 | D51: 1 | E51: 7952000 | F51: 023 | G51: 931
A52: Другие вопросы в области культуры, кинематографии | B52: 904 | C52: 8 | D52: 4 | E52: 0 | F52: 0 | G52: 1191.7
A53: Руководство и управление в сфере установленных функций органов государственной власти субъектов Российской Федерации и органов местного самоуправления | B53: 904 | C53: 8 | D53: 4 | E53: 20000 | F53: 0 | G53: 1191.7
A54: Центральный аппарат | B54: 904 | C54: 8 | D54: 4 | E54: 20400 | F54: 0 | G54: 1191.7
A55: Выполнение функций органами местного самоуправления | B55: 904 | C55: 8 | D55: 4 | E55: 20400 | F55: 500 | G55: 1191.7
A56: Отдел образования АЧРМО | B56: 907 | C56: 0 | D56: 0 | E56: 0 | F56: 0 | G56: 375603.4
A57: ОБРАЗОВАНИЕ | B57: 907 | C57: 7 | D57: 0 | E57: 0 | F57: 0 | G57: 369241.6
A58: Дошкольное образование | B58: 907 | C58: 7 | D58: 1 | E58: 0 | F58: 0 | G58: 73491.6
A59: Детские дошкольные учреждения | B59: 907 | C59: 7 | D59: 1 | E59: 4200000 | F59: 0 | G59: 64964.1
A60: Обеспечение деятельности подведомственных учреждений | B60: 907 | C60: 7 | D60: 1 | E60: 4209900 | F60: 0 | G60: 64964.1
A61: Выполнение функций казенными учреждениями | B61: 907 | C61: 7 | D61: 1 | E61: 4209900 | F61: 001 | G61: 64964.1
A62: Региональные целевые программы | B62: 907 | C62: 7 | D62: 1 | E62: 5220000 | F62: 0 | G62: 3027.5
A63: Областная государственная целевая программа поддержки и развития учреждений дошкольного образования в Иркутской области на 2009-2014 годы | B63: 907 | C63: 7 | D63: 1 | E63: 5223700 | F63: 0 | G63: 3027.5
A64: Выполнение функций казенными учреждениями | B64: 907 | C64: 7 | D64: 1 | E64: 5223700 | F64: 001 | G64: 3027.5
A65: Выплата заработной платы с начислениями на нее педагогическим работникам муниципальных дошкольных образовательных учреждений и муниципальных учреждений дополнительного образования | B65: 907 | C65: 7 | D65: 1 | E65: 5890000 | F65: 0 | G65: 1465
A66: Выполнение функций казенными учреждениями | B66: 907 | C66: 7 | D66: 1 | E66: 5890000 | F66: 001 | G66: 1465
A67: Целевые программы муниципальных образований | B67: 907 | C67: 7 | D67: 1 | E67: 7950000 | F67: 0 | G67: 4035
A68: Долгосрочная целевая программа Черемховского районного муниципального образования "Повышение эффективности бюджетных расходов Черемховского районного муниципального образования на 2012-2013 годы" | B68: 907 | C68: 7 | D68: 1 | E68: 7950200 | F68: 0 | G68: 2011
A69: Выполнение функций казенными учреждениями | B69: 907 | C69: 7 | D69: 1 | E69: 7950200 | F69: 001 | G69: 2011
A70: Долгосрочная целевая программа "Безопасность образовательных учреждений на 2010-2014 гг." | B70: 907 | C70: 7 | D70: 1 | E70: 7951000 | F70: 0 | G70: 572
A71: Мероприятия по обеспечению пожарной безопасности | B71: 907 | C71: 7 | D71: 1 | E71: 7951000 | F71: 450 | G71: 572
A72: Долгосрочная целевая программа энергосбережения и повышения энергетической эффективности Черемховского районного муниципального образования на 2010-2015 годы | B72: 907 | C72: 7 | D72: 1 | E72: 7951100 | F72: 0 | G72: 0
A73: Мероприятия по повышению энергетической эффективности | B73: 907 | C73: 7 | D73: 1 | E73: 7951100 | F73: 451 | G73: 0
A74: Долгосрочная целевая программа "Развитие дошкольного образования на 2011-2014 гг." | B74: 907 | C74: 7 | D74: 1 | E74: 7951700 | F74: 0 | G74: 1102
A75: Мероприятия в сфере образования | B75: 907 | C75: 7 | D75: 1 | E75: 7951700 | F75: 022 | G75: 1102
A76: Долгосрочная целевая программа "Совершенствование дошкольного образования Черемховского района на 2011-2014 гг." | B76: 907 | C76: 7 | D76: 1 | E76: 7951800 | F76: 0 | G76: 350
A77: Мероприятия в сфере образования | B77: 907 | C77: 7 | D77: 1 | E77: 7951800 | F77: 022 | G77: 350
A78: Общее образование | B78: 907 | C78: 7 | D78: 2 | E78: 0 | F78: 0 | G78: 287889.7
A79: Руководство и управление в сфере установленных функций органов государственной власти субъектов Российской Федерации и органов местного самоуправления | B79: 907 | C79: 7 | D79: 2 | E79: 20000 | F79: 0 | G79: 238581.9
A80: Обеспечение государственных гарантий прав граждан на получение общедоступного и бесплатного дошкольного, начального общего, основного общего, среднего (полного) общего образования, а также дополнительного образования в общеобразовательных учреждениях | B80: 907 | C80: 7 | D80: 2 | E80: 25000 | F80: 0 | G80: 238581.9
A81: Выполнение функций казенными учреждениями | B81: 907 | C81: 7 | D81: 2 | E81: 25000 | F81: 001 | G81: 238581.9
A82: Школы - детские сады, школы начальные, неполные средние и средние | B82: 907 | C82: 7 | D82: 2 | E82: 4210000 | F82: 0 | G82: 18815
A83: Обеспечение деятельности подведомственных учреждений | B83: 907 | C83: 7 | D83: 2 | E83: 4219900 | F83: 0 | G83: 18815
A84: Выполнение функций казенными учреждениями | B84: 907 | C84: 7 | D84: 2 | E84: 4219900 | F84: 001 | G84: 18815
A85: Учреждения по внешкольной работе с детьми | B85: 907 | C85: 7 | D85: 2 | E85: 4230000 | F85: 0 | G85: 21029.8
A86: Обеспечение деятельности подведомственных учреждений | B86: 907 | C86: 7 | D86: 2 | E86: 4239900 | F86: 0 | G86: 21029.8
A87: Выполнение функций казенными учреждениями | B87: 907 | C87: 7 | D87: 2 | E87: 4239900 | F87: 001 | G87: 21029.8
A88: Выплата заработной платы с начислениями на нее педагогическим работникам муниципальных дошкольных образовательных учреждений и муниципальных учреждений дополнительного образования | B88: 907 | C88: 7 | D88: 2 | E88: 5890000 | F88: 0 | G88: 540.1
A89: Выполнение функций казенными учреждениями | B89: 907 | C89: 7 | D89: 2 | E89: 5890000 | F89: 001 | G89: 540.1
A90: Целевые программы муниципальных образований | B90: 907 | C90: 7 | D90: 2 | E90: 7950000 | F90: 0 | G90: 8922.9
A91: Долгосрочная целевая программа Черемховского районного муниципального образования "Повышение эффективности бюджетных расходов Черемховского районного муниципального образования на 2012-2013 годы" | B91: 907 | C91: 7 | D91: 2 | E91: 7950200 | F91: 0 | G91: 5294.9
A92: Выполнение функций казенными учреждениями | B92: 907 | C92: 7 | D92: 2 | E92: 7950200 | F92: 001 | G92: 5294.9
A93: Долгосрочная целевая программа "Безопасность образовательных учреждений на 2010-2014 гг." | B93: 907 | C93: 7 | D93: 2 | E93: 7951000 | F93: 0 | G93: 1128
A94: Мероприятия по обеспечению пожарной безопасности | B94: 907 | C94: 7 | D94: 2 | E94: 7951000 | F94: 450 | G94: 1128
A95: Долгосрочная целевая программа энергосбережения и повышения энергетической эффективности Черемховского районного муниципального образования на 2010-2015 годы | B95: 907 | C95: 7 | D95: 2 | E95: 7951100 | F95: 0 | G95: 600
A96: Мероприятия по повышению энергетической эффективности | B96: 907 | C96: 7 | D96: 2 | E96: 7951100 | F96: 451 | G96: 600
A97: Долгосрочная целевая программа "Ветхие школы Черемховского района" на 2011-2013 гг. | B97: 907 | C97: 7 | D97: 2 | E97: 7951500 | F97: 0 | G97: 900
A98: Мероприятия в сфере образования | B98: 907 | C98: 7 | D98: 2 | E98: 7951500 | F98: 022 | G98: 900
A99: Долгосрочная целевая программа "Совершенствование организации питания в образовательных учреждениях Черемховского района на 2011-2013гг." | B99: 907 | C99: 7 | D99: 2 | E99: 7951600 | F99: 0 | G99: 1000
A100: Мероприятия в сфере образования | B100: 907 | C100: 7 | D100: 2 | E100: 7951600 | F100: 022 | G100: 1000
A101: Профессиональная подготовка, переподготовка и повышение квалификации | B101: 907 | C101: 7 | D101: 5 | E101: 0 | F101: 0 | G101: 100
A102: Мероприятия по переподготовке и повышению квалификации | B102: 907 | C102: 7 | D102: 5 | E102: 4340000 | F102: 0 | G102: 100
A103: Выполнение функций казенными учреждениями | B103: 907 | C103: 7 | D103: 5 | E103: 4340000 | F103: 001 | G103: 100
A104: Молодежная политика и оздоровление детей | B104: 907 | C104: 7 | D104: 7 | E104: 0 | F104: 0 | G104: 126
A105: Мероприятия по проведению оздоровительной кампании детей | B105: 907 | C105: 7 | D105: 7 | E105: 4320000 | F105: 0 | G105: 126
A106: Оплата стоимости набора продуктов питания для детей в организованных органами местного самоуправления оздоровительных лагерях с дневным пребыванием детей за счет средств областного бюджета | B106: 907 | C106: 7 | D106: 7 | E106: 4320300 | F106: 0 | G106: 126
A107: Оплата стоимости набора продуктов питания для детей в организованных органами местного самоуправления оздоровительных лагерях с дневным пребыванием детей за счет средств местного бюджета | B107: 907 | C107: 7 | D107: 7 | E107: 4320302 | F107: 0 | G107: 126
A108: Выполнение функций казенными учреждениями | B108: 907 | C108: 7 | D108: 7 | E108: 4320302 | F108: 001 | G108: 126
A109: Другие вопросы в области образования | B109: 907 | C109: 7 | D109: 9 | E109: 0 | F109: 0 | G109: 7634.3
A110: Руководство и управление в сфере установленных функций органов государственной власти субъектов Российской Федерации и органов местного самоуправления | B110: 907 | C110: 7 | D110: 9 | E110: 20000 | F110: 0 | G110: 2634.3
A111: Центральный аппарат | B111: 907 | C111: 7 | D111: 9 | E111: 20400 | F111: 0 | G111: 2634.3
A112: Выполнение функций органами местного самоуправления | B112: 907 | C112: 7 | D112: 9 | E112: 20400 | F112: 500 | G112: 2634.3
A113: Учебно-методические кабинеты, централизованные бухгалтерии, группы хозяйственного обслуживания, учебные фильмотеки, межшкольные учебно-производственные комбинаты, логопедические пункты | B113: 907 | C113: 7 | D113: 9 | E113: 4520000 | F113: 0 | G113: 5000
A114: Субсидии бюджетным учреждениям на финансовое обеспечение муниципального задания на оказание муниципальных услуг (выполнение работ) | B114: 907 | C114: 7 | D114: 9 | E114: 4520000 | F114: 611 | G114: 5000
A115: Социальная политика | B115: 907 | C115: 10 | D115: 0 | E115: 0 | F115: 0 | G115: 6361.8
A116: Социальное обеспечение населения | B116: 907 | C116: 10 | D116: 3 | E116: 0 | F116: 0 | G116: 6361.8
A117: Руководство и управление в сфере установленных функций органов государственной власти субъектов Российской Федерации и органов местного самоуправления | B117: 907 | C117: 10 | D117: 3 | E117: 20000 | F117: 0 | G117: 6361.8
A118: Осуществление отдельных областных государственных полномочий по предоставлению мер социальной поддержки многодетным и малоимущим семьям | B118: 907 | C118: 10 | D118: 3 | E118: 24600 | F118: 0 | G118: 6361.8
A119: Социальные выплаты | B119: 907 | C119: 10 | D119: 3 | E119: 24600 | F119: 005 | G119: 6361.8
A120: Финансовое управление администрации ЧРМО | B120: 910 | C120: 0 | D120: 0 | E120: 0 | F120: 0 | G120: =27631.9-30.2 -> 27601.7
A121: ОБЩЕГОСУДАРСТВЕННЫЕ ВОПРОСЫ | B121: 910 | C121: 1 | D121: 0 | E121: 0 | F121: 0 | G121: 22106.7
A122: Обеспечение деятельности финансовых, налоговых и таможенных органов и органов финансового (финансово-бюджетного) надзора | B122: 910 | C122: 1 | D122: 6 | E122: 0 | F122: 0 | G122: 8482.2
A123: Руководство и управление в сфере установленных функций органов государственной власти субъектов Российской Федерации и органов местного самоуправления | B123: 910 | C123: 1 | D123: 6 | E123: 20000 | F123: 0 | G123: 8282.2
A124: Центральный аппарат | B124: 910 | C124: 1 | D124: 6 | E124: 20400 | F124: 0 | G124: 8282.2
A125: Выполнение функций органами местного самоуправления | B125: 910 | C125: 1 | D125: 6 | E125: 20400 | F125: 500 | G125: 8282.2
A126: Целевые программы муниципальных образований | B126: 910 | C126: 1 | D126: 6 | E126: 7950000 | F126: 0 | G126: 200
A127: Долгосрочная целевая программа Черемховского районного муниципального образования "Повышение эффективности бюджетных расходов Черемховского районного муниципального образования на 2012-2013 годы" | B127: 910 | C127: 1 | D127: 6 | E127: 7950200 | F127: 0 | G127: 200
A128: Выполнение функций органами местного самоуправления | B128: 910 | C128: 1 | D128: 6 | E128: 7950200 | F128: 500 | G128: 200
A129: Другие общегосударственные вопросы | B129: 910 | C129: 1 | D129: 13 | E129: 0 | F129: 0 | G129: 13624.5
A130: Руководство и управление в сфере установленных функций органов государственной власти субъектов Российской Федерации и органов местного самоуправления | B130: 910 | C130: 1 | D130: 13 | E130: 20000 | F130: 0 | G130: 13624.5
A131: Обеспечение деятельности подведомственных учреждений | B131: 910 | C131: 1 | D131: 13 | E131: 29900 | F131: 0 | G131: 13624.5
A132: Выполнение функций казенными учреждениями | B132: 910 | C132: 1 | D132: 13 | E132: 29900 | F132: 001 | G132: 13624.5
A133: ОБРАЗОВАНИЕ | B133: 910 | C133: 7 | D133: 0 | E133: 0 | F133: 0 | G133: 60
A134: Профессиональная подготовка, переподготовка и повышение квалификации | B134: 910 | C134: 7 | D134: 5 | E134: 0 | F134: 0 | G134: 60
A135: Мероприятия по переподготовке и повышению квалификации | B135: 910 | C135: 7 | D135: 5 | E135: 4340000 | F135: 0 | G135: 60
A136: Выполнение функций органами местного самоуправления | B136: 910 | C136: 7 | D136: 5 | E136: 4340000 | F136: 500 | G136: 60
A137: ОБСЛУЖИВАНИЕ ГОСУДАРСТВЕННОГО И МУНИЦИПАЛЬНОГО ДОЛГА | B137: 910 | C137: 13 | D137: 0 | E137: 0 | F137: 0 | G137: 60
A138: Обслуживание внутреннего государственного и муниципального долга | B138: 910 | C138: 13 | D138: 1 | E138: 0 | F138: 0 | G138: 60
A139: Процентные платежи по долговым обязательствам | B139: 910 | C139: 13 | D139: 1 | E139: 650000 | F139: 0 | G139: 60
A140: Процентные платежи по муниципальному долгу | B140: 910 | C140: 13 | D140: 1 | E140: 650300 | F140: 0 | G140: 60
A141: Прочие расходы | B141: 910 | C141: 13 | D141: 1 | E141: 650300 | F141: 013 | G141: 60
A142: МЕЖБЮДЖЕТНЫЕ ТРАНСФЕРТЫ ОБЩЕГО ХАРАКТЕРА БЮДЖЕТАМ СУБЪЕКТОВ РОССИЙСКОЙ ФЕДЕРАЦИИ И МУНИЦИПАЛЬНЫХ ОБРАЗОВАНИЙ | B142: 910 | C142: 14 | D142: 0 | E142: 0 | F142: 0 | G142: 5375
A143: Дотации на выравнивание бюджетной обеспеченности субъектов Российской Федерации и муниципальных образований | B143: 910 | C143: 14 | D143: 1 | E143: 0 | F143: 0 | G143: 3500
A144: Выравнивание бюджетной обеспечености | B144: 910 | C144: 14 | D144: 1 | E144: 5160000 | F144: 0 | G144: 3500
A145: Выравнивание бюджетной обеспеченности | B145: 910 | C145: 14 | D145: 1 | E145: 5160100 | F145: 0 | G145: 3500
A146: Выравнивание бюджетной обеспеченности поселений из районного фонда финансовой поддержки | B146: 910 | C146: 14 | D146: 1 | E146: 5160130 | F146: 0 | G146: 3500
A147: Фонд финансовой поддержки | B147: 910 | C147: 14 | D147: 1 | E147: 5160130 | F147: 008 | G147: 3500
A148: Прочие межбюджетные трансферты общего характера бюджетам субъектов Российской Федерации и муниципальных образований | B148: 910 | C148: 14 | D148: 3 | E148: 0 | F148: 0 | G148: 1875
A149: Целевые программы муниципальных образований | B149: 910 | C149: 14 | D149: 3 | E149: 7950000 | F149: 0 | G149: 1875
A150: Долгосрочная целевая программа Черемховского районного муниципального образования "Повышение эффективности бюджетных расходов Черемховского районного муниципального образования на 2012-2013 годы" | B150: 910 | C150: 14 | D150: 3 | E150: 7950200 | F150: 0 | G150: 1875
A151: Иные межбюджетные трансферты | B151: 910 | C151: 14 | D151: 3 | E151: 7950200 | F151: 017 | G151: 1875
A152: Комитет по управлению муниципальным имуществом ЧРМО | B152: 913 | C152: 0 | D152: 0 | E152: 0 | F152: 0 | G152: 14967.9
A153: ОБЩЕГОСУДАРСТВЕННЫЕ ВОПРОСЫ | B153: 913 | C153: 1 | D153: 0 | E153: 0 | F153: 0 | G153: 11405.9
A154: Другие общегосударственные вопросы | B154: 913 | C154: 1 | D154: 13 | E154: 0 | F154: 0 | G154: 11405.9
A155: Руководство и управление в сфере установленных функций органов государственной власти субъектов Российской Федерации и органов местного самоуправления | B155: 913 | C155: 1 | D155: 13 | E155: 20000 | F155: 0 | G155: 3832.3
A156: Центральный аппарат | B156: 913 | C156: 1 | D156: 13 | E156: 20400 | F156: 0 | G156: 2932.3
A157: Выполнение функций органами местного самоуправления | B157: 913 | C157: 1 | D157: 13 | E157: 20400 | F157: 500 | G157: 2932.3
A158: Обеспечение деятельности подведомственных учреждений | B158: 913 | C158: 1 | D158: 13 | E158: 29900 | F158: 0 | G158: 900
A159: Субсидии бюджетным учреждениям на финансовое обеспечение муниципального задания на оказание муниципальных услуг (выполнение работ) | B159: 913 | C159: 1 | D159: 13 | E159: 29900 | F159: 611 | G159: 900
A160: Реализация государственных функций, связанных с общегосударственным управлением | B160: 913 | C160: 1 | D160: 13 | E160: 920000 | F160: 0 | G160: 573.6
A161: Выполнение других обязательств государства | B161: 913 | C161: 1 | D161: 13 | E161: 920300 | F161: 0 | G161: 573.6
A162: Выполнение функций органами местного самоуправления | B162: 913 | C162: 1 | D162: 13 | E162: 920300 | F162: 500 | G162: 573.6
A163: Учреждения по обеспечению хозяйственного обслуживания | B163: 913 | C163: 1 | D163: 13 | E163: 930000 | F163: 0 | G163: 6500
A164: Субсидии бюджетным учреждениям на финансовое обеспечение муниципального задания на оказание муниципальных услуг (выполнение работ) | B164: 913 | C164: 1 | D164: 13 | E164: 930000 | F164: 611 | G164: 6500
A165: Целевые программы муниципальных образований | B165: 913 | C165: 1 | D165: 13 | E165: 7950000 | F165: 0 | G165: 500
A166: Долгосрочная целевая программа "Инвентаризация муниципальных объектов недвижимости Черемховского районного муниципального образования на 2012-2014 годы" | B166: 913 | C166: 1 | D166: 13 | E166: 7951900 | F166: 0 | G166: 500
A167: Выполнение функций органами местного самоуправления | B167: 913 | C167: 1 | D167: 13 | E167: 7951900 | F167: 500 | G167: 500
A168: НАЦИОНАЛЬНАЯ ЭКОНОМИКА | B168: 913 | C168: 4 | D168: 0 | E168: 0 | F168: 0 | G168: 968.6
A169: Дорожное хозяйство(дорожные фонды) | B169: 913 | C169: 4 | D169: 9 | E169: 0 | F169: 0 | G169: 468.6
A170: Целевые программы муниципальных образований | B170: 913 | C170: 4 | D170: 9 | E170: 7950000 | F170: 0 | G170: 468.6
A171: Долгосрочная целевая программа "Инвентаризация муниципальных объектов недвижимости Черемховского районного муниципального образования на 2012-2014 годы" | B171: 913 | C171: 4 | D171: 9 | E171: 7951900 | F171: 0 | G171: 468.6
A172: Выполнение функций органами местного самоуправления | B172: 913 | C172: 4 | D172: 9 | E172: 7951900 | F172: 500 | G172: 468.6
A173: Другие вопросы в области национальной экономики | B173: 913 | C173: 4 | D173: 12 | E173: 0 | F173: 0 | G173: 500
A174: Целевые программы муниципальных образований | B174: 913 | C174: 4 | D174: 12 | E174: 7950000 | F174: 0 | G174: 500
A175: Долгосрочная целевая программа "Инвентаризация муниципальных объектов недвижимости Черемховского районного муниципального образования на 2012-2014 годы" | B175: 913 | C175: 4 | D175: 12 | E175: 7951900 | F175: 0 | G175: 500
A176: Выполнение функций органами местного самоуправления | B176: 913 | C176: 4 | D176: 12 | E176: 7951900 | F176: 500 | G176: 500
A177: ЖИЛИЩНО-КОММУНАЛЬНОЕ ХОЗЯЙСТВО | B177: 913 | C177: 5 | D177: 0 | E177: 0 | F177: 0 | G177: 54
A178: Жилищное хозяйство | B178: 913 | C178: 5 | D178: 1 | E178: 0 | F178: 0 | G178: 54
A179: Поддержка жилищного хозяйства | B179: 913 | C179: 5 | D179: 1 | E179: 3500000 | F179: 0 | G179: 54
A180: Мероприятия в области жилищного хозяйства | B180: 913 | C180: 5 | D180: 1 | E180: 3500300 | F180: 0 | G180: 54
A181: Выполнение функций органами местного самоуправления | B181: 913 | C181: 5 | D181: 1 | E181: 3500300 | F181: 500 | G181: 54
A182: ОБРАЗОВАНИЕ | B182: 913 | C182: 7 | D182: 0 | E182: 0 | F182: 0 | G182: 11.4
A183: Профессиональная подготовка, переподготовка и повышение квалификации | B183: 913 | C183: 7 | D183: 5 | E183: 0 | F183: 0 | G183: 11.4
A184: Мероприятия по переподготовке и повышению квалификации | B184: 913 | C184: 7 | D184: 5 | E184: 4340000 | F184: 0 | G184: 11.4
A185: Выполнение функций органами местного самоуправления | B185: 913 | C185: 7 | D185: 5 | E185: 4340000 | F185: 500 | G185: 11.4
A186: Социальная политика | B186: 913 | C186: 10 | D186: 0 | E186: 0 | F186: 0 | G186: 528
A187: Охрана семьи и детства | B187: 913 | C187: 10 | D187: 4 | E187: 0 | F187: 0 | G187: 528
A188: Исполнение судебных актов, вступивших в силу до 1 января 2013 года, по обеспечению жилыми помещениями детей-сирот и детей, оставшихся без попечения родителей, лиц из числа детей-сирот и детей, оставшихся без попечения родителей, не имеющих закрепленного жилого помещения | B188: 913 | C188: 10 | D188: 4 | E188: 6040000 | F188: 0 | G188: 528
A189: Бюджетные инвестиции | B189: 913 | C189: 10 | D189: 4 | E189: 6040000 | F189: 003 | G189: 528
A190: СРЕДСТВА МАССОВОЙ ИНФОРМАЦИИ | B190: 913 | C190: 12 | D190: 0 | E190: 0 | F190: 0 | G190: 2000
A191: Периодическая печать и издательства | B191: 913 | C191: 12 | D191: 2 | E191: 0 | F191: 0 | G191: 2000
A192: Периодические издания, учрежденные органами законодательной и исполнительной власти | B192: 913 | C192: 12 | D192: 2 | E192: 4570000 | F192: 0 | G192: 2000
A193: Государственная поддержка в сфере культуры, кинематографии и средств массовой информации | B193: 913 | C193: 12 | D193: 2 | E193: 4578500 | F193: 0 | G193: 2000
A194: Субсидии юридическим лицам | B194: 913 | C194: 12 | D194: 2 | E194: 4578500 | F194: 006 | G194: 2000
A195: Дума ЧРМО | B195: 916 | C195: 0 | D195: 0 | E195: 0 | F195: 0 | G195: 1206.1
A196: ОБЩЕГОСУДАРСТВЕННЫЕ ВОПРОСЫ | B196: 916 | C196: 1 | D196: 0 | E196: 0 | F196: 0 | G196: 1206.1
A197: Функционирование законодательных (представительных) органов государственной власти и представительных органов муниципальных образований | B197: 916 | C197: 1 | D197: 3 | E197: 0 | F197: 0 | G197: 1206.1
A198: Руководство и управление в сфере установленных функций органов государственной власти субъектов Российской Федерации и органов местного самоуправления | B198: 916 | C198: 1 | D198: 3 | E198: 20000 | F198: 0 | G198: 1206.1
A199: Центральный аппарат | B199: 916 | C199: 1 | D199: 3 | E199: 20400 | F199: 0 | G199: 372.1
A200: Выполнение функций органами местного самоуправления | B200: 916 | C200: 1 | D200: 3 | E200: 20400 | F200: 500 | G200: 372.1
A201: Председатель представительного органа муниципального образования | B201: 916 | C201: 1 | D201: 3 | E201: 21100 | F201: 0 | G201: 834
A202: Выполнение функций органами местного самоуправления | B202: 916 | C202: 1 | D202: 3 | E202: 21100 | F202: 500 | G202: 834
A203: Администрация ЧРМО | B203: 917 | C203: 0 | D203: 0 | E203: 0 | F203: 0 | G203: 42390.7
A204: ОБЩЕГОСУДАРСТВЕННЫЕ ВОПРОСЫ | B204: 917 | C204: 1 | D204: 0 | E204: 0 | F204: 0 | G204: 31250.4
A205: Функционирование высшего должностного лица субъекта Российской Федерации и муниципального образования | B205: 917 | C205: 1 | D205: 2 | E205: 0 | F205: 0 | G205: 2412
A206: Руководство и управление в сфере установленных функций органов государственной власти субъектов Российской Федерации и органов местного самоуправления | B206: 917 | C206: 1 | D206: 2 | E206: 20000 | F206: 0 | G206: 2412
A207: Глава муниципального образования | B207: 917 | C207: 1 | D207: 2 | E207: 20300 | F207: 0 | G207: 2412
A208: Выполнение функций органами местного самоуправления | B208: 917 | C208: 1 | D208: 2 | E208: 20300 | F208: 500 | G208: 2412
A209: Функционирование Правительства Российской Федерации, высших исполнительных органов государственной власти субъектов Российской Федерации, местных администраций | B209: 917 | C209: 1 | D209: 4 | E209: 0 | F209: 0 | G209: 25663.5
A210: Руководство и управление в сфере установленных функций органов государственной власти субъектов Российской Федерации и органов местного самоуправления | B210: 917 | C210: 1 | D210: 4 | E210: 20000 | F210: 0 | G210: 25663.5
... 124 more rows

Sheet прил12
A8: Распределение бюджетных ассигнований на реализацию долгосрочных районных целевых программ Черемховского районного муниципального образования на 2013 год
G9: (тыс. рублей)
A10: № п/п | B10: Наименование программы | C10: Исполнители | D10: Бюджетная классификация | H10: сумма
D11: ГРБС | E11: РзПр | F11: ЦСР | G11: ВР
A12: 1 | B12: 2 | C12: 3 | D12: 4 | E12: 5 | F12: 6 | G12: 7 | H12: 8
A13: 1 | B13: Развитие культуры в Черемховском районном муниципальном образовании на период 2012-2016 гг. | C13: Отдел по культуре и библиотечному обслуживанию АЧРМО | D13: 904 | E13: 0801, 0702 | F13: 7952000 | G13: 023 | H13: 1023.8
A14: 2 | B14: Ветхие школы Черемховского района на 2011-2013 гг. | C14: Отдел образования АЧРМО | D14: 907 | E14: 0702 | F14: 7951500 | G14: 022 | H14: 900
A15: 3 | B15: Совершенствование дошкольного образования Черемховского района на 2011-2014 гг. | D15: 907 | E15: 0701 | F15: 7951800 | G15: 022 | H15: 350
A16: 4 | B16: Совершенствование организации питания в образовательных учреждениях Черемховского района на 2011-2013 гг. | D16: 907 | E16: 0702 | F16: 7951600 | G16: 022 | H16: 1000
A17: 5 | B17: Развитие дошкольного образования на 2011-2014 гг. | D17: 907 | E17: 0701 | F17: 7951700 | G17: 022 | H17: 1102
A18: 6 | B18: "Безопасность образовательных учреждений" 2010-2014гг. | D18: 907 | E18: 0701, 0702 | F18: 7951000 | G18: 450 | H18: 1700
A19: 7 | B19: Инвентаризация муниципальных объектов недвижимости Черемховского районного муниципального образования на 2012-2014 годы | C19: КУМИ | D19: 913 | E19: 0113, 0412, 0409 | F19: 7951900 | G19: 500 | H19: 1468.6
A20: 8 | B20: Молодым семьям доступное жилье на 2012-2019гг. | C20: Администрация ЧРМО | D20: 917 | E20: 1003 | F20: 7952100 | G20: 005 | H20: 360
A21: 9 | B21: Комплексные меры профилактики злоупотребления наркотическими средствами, психотропними веществами в Черемховском районном муниципальном образовании на 2011-2013 гг. | D21: 917 | E21: 0707 | F21: 7951300 | G21: 500 | H21: 10
A22: 10 | B22: Молодежная политика в Черемховском районном муниципальном образовании на 2013-2015 | D22: 917 | E22: 0707 | F22: 7952500 | G22: 447 | H22: 40
A23: 11 | B23: Развитие физической культуры, спорта и туризма в Черемховском районном муниципальном образовании на 2011-2013гг. | D23: 917 | E23: 1101 | F23: 7951200 | G23: 500 | H23: 100
A24: 12 | B24: Поддержка и развитие малого и среднего предпринимательства в Черемховском районе на 2013-2014 гг. | D24: 917 | E24: 0412 | F24: 7952200 | G24: 500 | H24: 100
A25: 13 | B25: Поддержка, проводимых мероприятий, посвященных Дням воинской славы, памятным датам России и работе с ветеранами и инвалидами в Черемховском районе на 2013-2015 гг. | D25: 917 | E25: 1006 | F25: 7952400 | G25: 500 | H25: 100
A26: 14 | B26: Улучшение условий и охраны труда в Черемховском районе на 2011-2013 гг | D26: 917 | E26: 0113 | F26: 7951400 | G26: 500 | H26: 15
A27: 15 | B27: Развитие автомобильных дорог Черемховского районного муниципального образования на 2013-2015 гг. | D27: 917 | E27: 0409 | F27: 7952300 | G27: 500 | H27: 202.5
A28: 16 | B28: Поддержка молодых педагогов на территории Черемховского районного муниципального образования на 2012-2013 гг. | D28: 917 | E28: 0113 | F28: 7952700 | G28: 500 | H28: 100
A29: 17 | B29: Профилактика правонарушений в Черемховском районном муниципальном образовании на 2013-2016 гг. | D29: 917 | E29: 0113 | F29: 7952600 | G29: 500 | H29: 40
A30: 18 | B30: Программа повышения энергетической эффективности Черемховского районного муниципального образования на 2010-2015 гг | C30: Отдел образования АЧРМО | D30: 907 | E30: 0702 | F30: 7951100 | G30: 451 | H30: 600
C31: Отдел по культуре и библиотечному обслуживанию АЧРМО | D31: 904 | E31: 0801 | F31: 7951100 | G31: 451 | H31: 282
A32: 19 | B32: Повышение эффективности бюджетных расходов Черемховского районного муниципального образования на 2012-2013 годы | C32: Финансовое управление АЧРМО | D32: 910 | E32: 0106 | F32: 7950200 | G32: 500 | H32: 200
C33: Отдел образования АЧРМО | D33: 907 | E33: 0701, 0702 | F33: 7950200 | G33: 001 | H33: 7305.9
C34: Отдел по культуре и библиотечному обслуживанию АЧРМО | D34: 904 | E34: 0702, 0801 | F34: 7950200 | G34: 001 | H34: 483
C35: Муниципальные образования района, Всего, в том числе | H35: 1875
C36: Алехинское сельское поселение | D36: 910 | E36: 1403 | F36: 7950200 | G36: 017 | H36: 187
C37: Бельское сельское поселение | D37: 910 | E37: 1403 | F37: 7950200 | G37: 017 | H37: 91
C38: Булайское сельское поселение | D38: 910 | E38: 1403 | F38: 7950200 | G38: 017 | H38: 143
C39: Голуметское сельское поселение | D39: 910 | E39: 1403 | F39: 7950200 | G39: 017 | H39: 97
C40: Зерновское сельское поселение | D40: 910 | E40: 1403 | F40: 7950200 | G40: 017 | H40: 116
C41: Каменно-Ангарское сельское поселение | D41: 910 | E41: 1403 | F41: 7950200 | G41: 017 | H41: 99
C42: Лоховское сельское поселение | D42: 910 | E42: 1403 | F42: 7950200 | G42: 017 | H42: 65
C43: Михайловское городское поселение | D43: 910 | E43: 1403 | F43: 7950200 | G43: 017 | H43: 142
C44: Нижнеиретское сельское поселение | D44: 910 | E44: 1403 | F44: 7950200 | G44: 017 | H44: 84
C45: Новогромовское сельское поселение | D45: 910 | E45: 1403 | F45: 7950200 | G45: 017 | H45: 78
C46: Новостроевское сельское поселение | D46: 910 | E46: 1403 | F46: 7950200 | G46: 017 | H46: 84
C47: Онотское сельское поселение | D47: 910 | E47: 1403 | F47: 7950200 | G47: 017 | H47: 104
C48: Парфеновское сельское поселение | D48: 910 | E48: 1403 | F48: 7950200 | G48: 017 | H48: 97
C49: Саянское сельское поселение | D49: 910 | E49: 1403 | F49: 7950200 | G49: 017 | H49: 107
C50: Тальниковское сельское поселение | D50: 910 | E50: 1403 | F50: 7950200 | G50: 017 | H50: 87
C51: Тунгусское сельское поселение | D51: 910 | E51: 1403 | F51: 7950200 | G51: 017 | H51: 102
C52: Узколугское сельское поселение | D52: 910 | E52: 1403 | F52: 7950200 | G52: 017 | H52: 93
C53: Черемховское сельское поселение | D53: 910 | E53: 1403 | F53: 7950200 | G53: 017 | H53: 99
A54: Всего | H54: =SUM(H13:H35) -> 19357.8
A57: Начальник финансового управления | H57: Ю.Н. Гайдук

Sheet прил 16заим 2013
A7: Программа муниципальных внутренних заимствований Черемховского районного муниципального образования на 2013 год
E8: (тыс.рублей)
A9: Виды долговых обязательств (привлечение/погашение) | B9: Объем муниципального долга на 1 января 2013 года | C9: Объем привлечения в 2013 году | D9: Объем погашения в 2013 году | E9: Верхний предел муниципального долга на 1 января 2014 года
A10: Объем заимствований, всего | B10: 0 | C10: =C12+C13 -> 4061.44795 | D10: 0 | E10: =E12+E13 -> 4061.44795
A11: в том числе:
A12: 2. Кредиты кредитных организаций в валюте Российской Федерации сроком до 3-х лет | B12: 0 | C12: 4061.44795 | D12: 0 | E12: =B12+C12-D12 -> 4061.44795
A13: 3. Бюджетные кредиты от других бюджетов бюджетной системы Российской Федерации | B13: 0 | C13: 0 | D13: 0 | E13: 0
A16: Начальник финансового управления | E16: Ю.Н. Гайдук

Sheet прил17заим2014-2015
A8: Программа муниципальных внутренних заимствований Черемховского районного муниципального образования на плановый период 2014 и 2015 годов
H9: (тыс.рублей)
A10: Виды долговых обязательств (привлечение/погашение) | B10: Объем муниципального долга на 1 января 2014 года | C10: Объем привлечения в 2014 году | D10: Объем погашения в 2014 году | E10: Верхний предел муниципального долга на 1 января 2015 года | F10: Объем привлечения в 2015 году | G10: Объем погашения в 2015 году | H10: Верхний предел муниципального долга на 1 января 2016 года
A11: Объем заимствований, всего | B11: =B13+B14 -> 4061.4 | C11: 4153.9 | D11: 0 | E11: 8215.3 | F11: 4315.2 | G11: 0 | H11: 12530.5
A12: в том числе:
A13: 2. Кредиты кредитных организаций в валюте Российской Федерации сроком до 3-х лет | B13: 4061.4 | C13: 4153.9 | D13: 0 | E13: =B13+C13 -> 8215.3 | F13: 4315.2 | G13: 0 | H13: =E13+F13-G13 -> 12530.5
A14: 3. Бюджетные кредиты от других бюджетов бюджетной системы Российской Федерации | B14: 0 | C14: 0 | D14: 0 | E14: 0 | F14: 0 | G14: 0 | H14: 0
A17: Начальник финансового управления | H17: Ю.Н. Гайдук

Sheet прил18источн2013
A8: Источники внутреннего финансирования дефицита бюджета Черемховского районного муниципального образования на 2013 год
C10: (тыс.рублей)
A11: Наименование | B11: Код | C11: Сумма
A12: Источники внутреннего финансирования дефицита бюджета | B12: 000 01 00 00 00 00 0000 000 | C12: =C13+C19 -> 19503.16885
A13: Кредиты кредитных организаций в валюте Российской Федерации | B13: 810 01 02 00 00 00 0000 000 | C13: =C14 -> 4061.44795
A14: Получение кредитов от кредитных организаций в валюте Российской Федерации | B14: 810 01 02 00 00 00 0000 700 | C14: =C15 -> 4061.44795
A15: Кредиты, полученные в валюте Российской Федерации от кредитных организаций бюджетами муниципальных районнов | B15: 810 01 02 00 00 05 0000 710 | C15: 4061.44795
A16: Бюджетные кредиты от других бюджетов бюджетной системы Российской Федерации | B16: 810 01 03 00 00 00 0000 000 | C16: 0
A17: Погашение бюджетных кредитов, полученных от других бюджетов бюджетной системы Российской Федерации в валюте Российской Федерации | B17: 810 01 03 00 00 00 0000 800 | C17: 0
A18: Погашение бюджетами муниципальных районнов кредитов от других бюджетов бюджетной системы Российской Федерации в валюте Российской Федерации | B18: 810 01 03 00 00 05 0000 810 | C18: 0
A19: Изменение остатков средств на счетах по учету средств бюджетов | B19: 000 01 05 00 00 00 0000 000 | C19: =C20+C22 -> 15441.7209
A20: Увеличение остатков средств бюджетов | B20: 000 01 05 00 00 00 0000 500 | C20: =C21 -> -484230.2791
A21: Увеличение прочих остатков средств бюджетов | B21: 000 01 05 02 00 00 0000 500 | C21: =-480168.83115-4061.44795 -> -484230.2791
A22: Уменьшение остатков средств бюджетов | B22: 000 01 05 00 00 00 0000 600 | C22: =C23 -> 499672
A23: Уменьшение прочих остатков средств бюджетов | B23: 000 01 05 02 00 00 0000 600 | C23: =499672 -> 499672
A25: Начальник финансового управления | C25: Ю.Н. Гайдук
